Workbook

Sheet leány (hidden)
B1: 61 m | C1: 60m | D1: 801 m | E1: 800 m | F1: Pont | G1: Távol | H1: Súlyl. | I1: Kisl. | J1: Pont
B2: 6.89 | C2: 6.9 | D2: 00:01:28.700 | E2: 00:01:29 | F2: 300 | G2: =O2/100 -> 1.8 | H2: 3 | I2: 4 | J2: 0 | O2: 180
B3: 6.9051 | C3: 6.918 | D3: 00:01:29.005 | E3: 00:01:29.220 | F3: 299 | G3: 1.82 | H3: 3.05 | I3: 4.28 | J3: 1 | O3: 182
B4: 6.9231 | C4: 6.936 | D4: 00:01:29.225 | E4: 00:01:29.440 | F4: 298 | G4: 1.84 | H4: 3.1 | I4: 4.56 | J4: 2 | O4: 184
B5: 6.9411 | C5: 6.954 | D5: 00:01:29.445 | E5: 00:01:29.660 | F5: 297 | G5: 1.86 | H5: 3.14 | I5: 4.84 | J5: 3 | O5: 186
B6: 6.9591 | C6: 6.972 | D6: 00:01:29.665 | E6: 00:01:29.880 | F6: 296 | G6: 1.87 | H6: 3.19 | I6: 5.11 | J6: 4 | O6: 187
B7: 6.9771 | C7: 6.99 | D7: 00:01:29.885 | E7: 00:01:30.100 | F7: 295 | G7: 1.89 | H7: 3.24 | I7: 5.39 | J7: 5 | O7: 189
B8: 6.9951 | C8: 7.008 | D8: 00:01:30.105 | E8: 00:01:30.320 | F8: 294 | G8: 1.91 | H8: 3.29 | I8: 5.67 | J8: 6 | O8: 191
B9: 7.0131 | C9: 7.026 | D9: 00:01:30.325 | E9: 00:01:30.540 | F9: 293 | G9: 1.93 | H9: 3.34 | I9: 5.95 | J9: 7 | O9: 193
B10: 7.0311 | C10: 7.044 | D10: 00:01:30.545 | E10: 00:01:30.760 | F10: 292 | G10: 1.95 | H10: 3.38 | I10: 6.23 | J10: 8 | O10: 195
B11: 7.0491 | C11: 7.062 | D11: 00:01:30.765 | E11: 00:01:30.980 | F11: 291 | G11: 1.97 | H11: 3.43 | I11: 6.51 | J11: 9 | O11: 197
B12: 7.0671 | C12: 7.08 | D12: 00:01:30.985 | E12: 00:01:31.200 | F12: 290 | G12: 1.99 | H12: 3.48 | I12: 6.78 | J12: 10 | O12: 199
B13: 7.0851 | C13: 7.098 | D13: 00:01:31.205 | E13: 00:01:31.420 | F13: 289 | G13: 2.01 | H13: 3.53 | I13: 7.06 | J13: 11 | O13: 201
B14: 7.1031 | C14: 7.116 | D14: 00:01:31.425 | E14: 00:01:31.640 | F14: 288 | G14: 2.02 | H14: 3.58 | I14: 7.34 | J14: 12 | O14: 202
B15: 7.1211 | C15: 7.134 | D15: 00:01:31.645 | E15: 00:01:31.860 | F15: 287 | G15: 2.04 | H15: 3.62 | I15: 7.62 | J15: 13 | O15: 204
B16: 7.1391 | C16: 7.152 | D16: 00:01:31.865 | E16: 00:01:32.080 | F16: 286 | G16: 2.06 | H16: 3.67 | I16: 7.9 | J16: 14 | O16: 206
B17: 7.1571 | C17: 7.17 | D17: 00:01:32.085 | E17: 00:01:32.300 | F17: 285 | G17: 2.08 | H17: 3.72 | I17: 8.18 | J17: 15 | O17: 208
B18: 7.1751 | C18: 7.188 | D18: 00:01:32.305 | E18: 00:01:32.520 | F18: 284 | G18: 2.1 | H18: 3.77 | I18: 8.45 | J18: 16 | O18: 210
B19: 7.1931 | C19: 7.206 | D19: 00:01:32.525 | E19: 00:01:32.740 | F19: 283 | G19: 2.12 | H19: 3.82 | I19: 8.73 | J19: 17 | O19: 212
B20: 7.2111 | C20: 7.224 | D20: 00:01:32.745 | E20: 00:01:32.960 | F20: 282 | G20: 2.14 | H20: 3.86 | I20: 9.01 | J20: 18 | O20: 214
B21: 7.2291 | C21: 7.242 | D21: 00:01:32.965 | E21: 00:01:33.180 | F21: 281 | G21: 2.16 | H21: 3.91 | I21: 9.29 | J21: 19 | O21: 216
B22: 7.2471 | C22: 7.26 | D22: 00:01:33.185 | E22: 00:01:33.400 | F22: 280 | G22: 2.17 | H22: 3.96 | I22: 9.57 | J22: 20 | O22: 217
B23: 7.2651 | C23: 7.278 | D23: 00:01:33.405 | E23: 00:01:33.620 | F23: 279 | G23: 2.19 | H23: 4.01 | I23: 9.85 | J23: 21 | O23: 219
B24: 7.2831 | C24: 7.296 | D24: 00:01:33.625 | E24: 00:01:33.840 | F24: 278 | G24: 2.21 | H24: 4.06 | I24: 10.12 | J24: 22 | O24: 221
B25: 7.3011 | C25: 7.314 | D25: 00:01:33.845 | E25: 00:01:34.060 | F25: 277 | G25: 2.23 | H25: 4.1 | I25: 10.4 | J25: 23 | O25: 223
B26: 7.3191 | C26: 7.332 | D26: 00:01:34.065 | E26: 00:01:34.280 | F26: 276 | G26: 2.25 | H26: 4.15 | I26: 10.68 | J26: 24 | O26: 225
B27: 7.3371 | C27: 7.35 | D27: 00:01:34.285 | E27: 00:01:34.500 | F27: 275 | G27: 2.27 | H27: 4.2 | I27: 10.96 | J27: 25 | O27: 227
B28: 7.3551 | C28: 7.368 | D28: 00:01:34.505 | E28: 00:01:34.720 | F28: 274 | G28: 2.29 | H28: 4.25 | I28: 11.24 | J28: 26 | O28: 229
B29: 7.3731 | C29: 7.386 | D29: 00:01:34.725 | E29: 00:01:34.940 | F29: 273 | G29: 2.31 | H29: 4.3 | I29: 11.52 | J29: 27 | O29: 231
B30: 7.3911 | C30: 7.404 | D30: 00:01:34.945 | E30: 00:01:35.160 | F30: 272 | G30: 2.32 | H30: 4.34 | I30: 11.8 | J30: 28 | O30: 232
B31: 7.4091 | C31: 7.422 | D31: 00:01:35.165 | E31: 00:01:35.380 | F31: 271 | G31: 2.34 | H31: 4.39 | I31: 12.07 | J31: 29 | O31: 234
B32: 7.4271 | C32: 7.44 | D32: 00:01:35.385 | E32: 00:01:35.600 | F32: 270 | G32: 2.36 | H32: 4.44 | I32: 12.35 | J32: 30 | O32: 236
B33: 7.4451 | C33: 7.458 | D33: 00:01:35.605 | E33: 00:01:35.820 | F33: 269 | G33: 2.38 | H33: 4.49 | I33: 12.63 | J33: 31 | O33: 238
B34: 7.4631 | C34: 7.476 | D34: 00:01:35.825 | E34: 00:01:36.040 | F34: 268 | G34: 2.4 | H34: 4.54 | I34: 12.91 | J34: 32 | O34: 240
B35: 7.4811 | C35: 7.494 | D35: 00:01:36.045 | E35: 00:01:36.260 | F35: 267 | G35: 2.42 | H35: 4.58 | I35: 13.19 | J35: 33 | O35: 242
B36: 7.4991 | C36: 7.512 | D36: 00:01:36.265 | E36: 00:01:36.480 | F36: 266 | G36: 2.44 | H36: 4.63 | I36: 13.47 | J36: 34 | O36: 244
B37: 7.5171 | C37: 7.53 | D37: 00:01:36.485 | E37: 00:01:36.700 | F37: 265 | G37: 2.46 | H37: 4.68 | I37: 13.74 | J37: 35 | O37: 246
B38: 7.5351 | C38: 7.548 | D38: 00:01:36.705 | E38: 00:01:36.920 | F38: 264 | G38: 2.47 | H38: 4.73 | I38: 14.02 | J38: 36 | O38: 247
B39: 7.5531 | C39: 7.566 | D39: 00:01:36.925 | E39: 00:01:37.140 | F39: 263 | G39: 2.49 | H39: 4.78 | I39: 14.3 | J39: 37 | O39: 249
B40: 7.5711 | C40: 7.584 | D40: 00:01:37.145 | E40: 00:01:37.360 | F40: 262 | G40: 2.51 | H40: 4.82 | I40: 14.58 | J40: 38 | O40: 251
B41: 7.5891 | C41: 7.602 | D41: 00:01:37.365 | E41: 00:01:37.580 | F41: 261 | G41: 2.53 | H41: 4.87 | I41: 14.86 | J41: 39 | O41: 253
B42: 7.6071 | C42: 7.62 | D42: 00:01:37.585 | E42: 00:01:37.800 | F42: 260 | G42: 2.55 | H42: 4.92 | I42: 15.14 | J42: 40 | O42: 255
B43: 7.6251 | C43: 7.638 | D43: 00:01:37.805 | E43: 00:01:38.020 | F43: 259 | G43: 2.57 | H43: 4.97 | I43: 15.41 | J43: 41 | O43: 257
B44: 7.6431 | C44: 7.656 | D44: 00:01:38.025 | E44: 00:01:38.240 | F44: 258 | G44: 2.59 | H44: 5.02 | I44: 15.69 | J44: 42 | O44: 259
B45: 7.6611 | C45: 7.674 | D45: 00:01:38.245 | E45: 00:01:38.460 | F45: 257 | G45: 2.61 | H45: 5.06 | I45: 15.97 | J45: 43 | O45: 261
B46: 7.6791 | C46: 7.692 | D46: 00:01:38.465 | E46: 00:01:38.680 | F46: 256 | G46: 2.62 | H46: 5.11 | I46: 16.25 | J46: 44 | O46: 262
B47: 7.6971 | C47: 7.71 | D47: 00:01:38.685 | E47: 00:01:38.900 | F47: 255 | G47: 2.64 | H47: 5.16 | I47: 16.53 | J47: 45 | O47: 264
B48: 7.7151 | C48: 7.728 | D48: 00:01:38.905 | E48: 00:01:39.120 | F48: 254 | G48: 2.66 | H48: 5.21 | I48: 16.81 | J48: 46 | O48: 266
B49: 7.7331 | C49: 7.746 | D49: 00:01:39.125 | E49: 00:01:39.340 | F49: 253 | G49: 2.68 | H49: 5.26 | I49: 17.08 | J49: 47 | O49: 268
B50: 7.7511 | C50: 7.764 | D50: 00:01:39.345 | E50: 00:01:39.560 | F50: 252 | G50: 2.7 | H50: 5.3 | I50: 17.36 | J50: 48 | O50: 270
B51: 7.7691 | C51: 7.782 | D51: 00:01:39.565 | E51: 00:01:39.780 | F51: 251 | G51: 2.72 | H51: 5.35 | I51: 17.64 | J51: 49 | O51: 272
B52: 7.7871 | C52: 7.8 | D52: 00:01:39.785 | E52: 00:01:40 | F52: 250 | G52: 2.73 | H52: 5.4 | I52: 17.92 | J52: 50 | O52: 273
B53: 7.8051 | C53: 7.82 | D53: 00:01:40.005 | E53: 00:01:40.240 | F53: 249 | G53: 2.75 | H53: 5.44 | I53: 18.18 | J53: 51 | O53: 275
B54: 7.8251 | C54: 7.84 | D54: 00:01:40.245 | E54: 00:01:40.480 | F54: 248 | G54: 2.76 | H54: 5.49 | I54: 18.43 | J54: 52 | O54: 276
B55: 7.8451 | C55: 7.85 | D55: 00:01:40.485 | E55: 00:01:40.720 | F55: 247 | G55: 2.78 | H55: 5.53 | I55: 18.69 | J55: 53 | O55: 278
B56: 7.8551 | C56: 7.87 | D56: 00:01:40.725 | E56: 00:01:40.960 | F56: 246 | G56: 2.8 | H56: 5.58 | I56: 18.94 | J56: 54 | O56: 280
B57: 7.8751 | C57: 7.89 | D57: 00:01:40.965 | E57: 00:01:41.200 | F57: 245 | G57: 2.82 | H57: 5.62 | I57: 19.2 | J57: 55 | O57: 282
B58: 7.8951 | C58: 7.91 | D58: 00:01:41.205 | E58: 00:01:41.440 | F58: 244 | G58: 2.83 | H58: 5.66 | I58: 19.45 | J58: 56 | O58: 283
B59: 7.9151 | C59: 7.93 | D59: 00:01:41.445 | E59: 00:01:41.680 | F59: 243 | G59: 2.85 | H59: 5.71 | I59: 19.71 | J59: 57 | O59: 285
B60: 7.9351 | C60: 7.95 | D60: 00:01:41.685 | E60: 00:01:41.920 | F60: 242 | G60: 2.87 | H60: 5.75 | I60: 19.96 | J60: 58 | O60: 287
B61: 7.9551 | C61: 7.96 | D61: 00:01:41.925 | E61: 00:01:42.160 | F61: 241 | G61: 2.88 | H61: 5.8 | I61: 20.22 | J61: 59 | O61: 288
B62: 7.9651 | C62: 7.98 | D62: 00:01:42.165 | E62: 00:01:42.400 | F62: 240 | G62: 2.9 | H62: 5.84 | I62: 20.47 | J62: 60 | O62: 290
B63: 7.9851 | C63: 8 | D63: 00:01:42.405 | E63: 00:01:42.640 | F63: 239 | G63: 2.92 | H63: 5.88 | I63: 20.73 | J63: 61 | O63: 292
B64: 8.0051 | C64: 8.02 | D64: 00:01:42.645 | E64: 00:01:42.880 | F64: 238 | G64: 2.94 | H64: 5.93 | I64: 20.98 | J64: 62 | O64: 294
B65: 8.0251 | C65: 8.04 | D65: 00:01:42.885 | E65: 00:01:43.120 | F65: 237 | G65: 2.95 | H65: 5.97 | I65: 21.24 | J65: 63 | O65: 295
B66: 8.0451 | C66: 8.05 | D66: 00:01:43.125 | E66: 00:01:43.360 | F66: 236 | G66: =O66/100 -> 2.97 | H66: 6.02 | I66: 21.49 | J66: 64 | O66: 297
B67: 8.0551 | C67: 8.07 | D67: 00:01:43.365 | E67: 00:01:43.600 | F67: 235 | G67: 2.99 | H67: 6.06 | I67: 21.75 | J67: 65 | O67: 299
B68: 8.0751 | C68: 8.09 | D68: 00:01:43.605 | E68: 00:01:43.840 | F68: 234 | G68: 3 | H68: 6.1 | I68: 22 | J68: 66 | O68: 300
B69: 8.0951 | C69: 8.11 | D69: 00:01:43.845 | E69: 00:01:44.080 | F69: 233 | G69: 3.02 | H69: 6.15 | I69: 22.26 | J69: 67 | O69: 302
B70: 8.1151 | C70: 8.13 | D70: 00:01:44.085 | E70: 00:01:44.320 | F70: 232 | G70: 3.04 | H70: 6.19 | I70: 22.51 | J70: 68 | O70: 304
B71: 8.1351 | C71: 8.15 | D71: 00:01:44.325 | E71: 00:01:44.560 | F71: 231 | G71: 3.06 | H71: 6.24 | I71: 22.77 | J71: 69 | O71: 306
B72: 8.1551 | C72: 8.16 | D72: 00:01:44.565 | E72: 00:01:44.800 | F72: 230 | G72: 3.07 | H72: 6.28 | I72: 23.02 | J72: 70 | O72: 307
B73: 8.1651 | C73: 8.18 | D73: 00:01:44.805 | E73: 00:01:45.040 | F73: 229 | G73: 3.09 | H73: 6.32 | I73: 23.28 | J73: 71 | O73: 309
B74: 8.1851 | C74: 8.2 | D74: 00:01:45.045 | E74: 00:01:45.280 | F74: 228 | G74: 3.11 | H74: 6.37 | I74: 23.53 | J74: 72 | O74: 311
B75: 8.2051 | C75: 8.22 | D75: 00:01:45.285 | E75: 00:01:45.520 | F75: 227 | G75: 3.12 | H75: 6.41 | I75: 23.79 | J75: 73 | O75: 312
B76: 8.2251 | C76: 8.24 | D76: 00:01:45.525 | E76: 00:01:45.760 | F76: 226 | G76: 3.14 | H76: 6.46 | I76: 24.04 | J76: 74 | O76: 314
B77: 8.2451 | C77: 8.26 | D77: 00:01:45.765 | E77: 00:01:46 | F77: 225 | G77: 3.16 | H77: 6.5 | I77: 24.3 | J77: 75 | O77: 316
B78: 8.2651 | C78: 8.27 | D78: 00:01:46.005 | E78: 00:01:46.240 | F78: 224 | G78: 3.18 | H78: 6.54 | I78: 24.56 | J78: 76 | O78: 318
B79: 8.2751 | C79: 8.29 | D79: 00:01:46.245 | E79: 00:01:46.480 | F79: 223 | G79: 3.19 | H79: 6.59 | I79: 24.81 | J79: 77 | O79: 319
B80: 8.2951 | C80: 8.31 | D80: 00:01:46.485 | E80: 00:01:46.720 | F80: 222 | G80: 3.21 | H80: 6.63 | I80: 25.07 | J80: 78 | O80: 321
B81: 8.3151 | C81: 8.33 | D81: 00:01:46.725 | E81: 00:01:46.960 | F81: 221 | G81: 3.23 | H81: 6.68 | I81: 25.32 | J81: 79 | O81: 323
B82: 8.3351 | C82: 8.35 | D82: 00:01:46.965 | E82: 00:01:47.200 | F82: 220 | G82: 3.24 | H82: 6.72 | I82: 25.58 | J82: 80 | O82: 324
B83: 8.3551 | C83: 8.36 | D83: 00:01:47.205 | E83: 00:01:47.440 | F83: 219 | G83: 3.26 | H83: 6.76 | I83: 25.83 | J83: 81 | O83: 326
B84: 8.3651 | C84: 8.38 | D84: 00:01:47.445 | E84: 00:01:47.680 | F84: 218 | G84: 3.28 | H84: 6.81 | I84: 26.09 | J84: 82 | O84: 328
B85: 8.3851 | C85: 8.4 | D85: 00:01:47.685 | E85: 00:01:47.920 | F85: 217 | G85: 3.3 | H85: 6.85 | I85: 26.34 | J85: 83 | O85: 330
B86: 8.4051 | C86: 8.42 | D86: 00:01:47.925 | E86: 00:01:48.160 | F86: 216 | G86: 3.31 | H86: 6.9 | I86: 26.6 | J86: 84 | O86: 331
B87: 8.4251 | C87: 8.44 | D87: 00:01:48.165 | E87: 00:01:48.400 | F87: 215 | G87: 3.33 | H87: 6.94 | I87: 26.85 | J87: 85 | O87: 333
B88: 8.4451 | C88: 8.46 | D88: 00:01:48.405 | E88: 00:01:48.640 | F88: 214 | G88: 3.35 | H88: 6.98 | I88: 27.11 | J88: 86 | O88: 335
B89: 8.4651 | C89: 8.47 | D89: 00:01:48.645 | E89: 00:01:48.880 | F89: 213 | G89: 3.36 | H89: 7.03 | I89: 27.36 | J89: 87 | O89: 336
B90: 8.4751 | C90: 8.49 | D90: 00:01:48.885 | E90: 00:01:49.120 | F90: 212 | G90: 3.38 | H90: 7.07 | I90: 27.62 | J90: 88 | O90: 338
B91: 8.4951 | C91: 8.51 | D91: 00:01:49.125 | E91: 00:01:49.360 | F91: 211 | G91: 3.4 | H91: 7.12 | I91: 27.87 | J91: 89 | O91: 340
B92: 8.5151 | C92: 8.53 | D92: 00:01:49.365 | E92: 00:01:49.600 | F92: 210 | G92: 3.42 | H92: 7.16 | I92: 28.13 | J92: 90 | O92: 342
B93: 8.5351 | C93: 8.55 | D93: 00:01:49.605 | E93: 00:01:49.840 | F93: 209 | G93: 3.43 | H93: 7.2 | I93: 28.38 | J93: 91 | O93: 343
B94: 8.5551 | C94: 8.56 | D94: 00:01:49.845 | E94: 00:01:50.080 | F94: 208 | G94: 3.45 | H94: 7.25 | I94: 28.64 | J94: 92 | O94: 345
B95: 8.5651 | C95: 8.58 | D95: 00:01:50.085 | E95: 00:01:50.320 | F95: 207 | G95: 3.47 | H95: 7.29 | I95: 28.89 | J95: 93 | O95: 347
B96: 8.5851 | C96: 8.6 | D96: 00:01:50.325 | E96: 00:01:50.560 | F96: 206 | G96: 3.49 | H96: 7.34 | I96: 29.15 | J96: 94 | O96: 349
B97: 8.6051 | C97: 8.62 | D97: 00:01:50.565 | E97: 00:01:50.800 | F97: 205 | G97: 3.5 | H97: 7.38 | I97: 29.4 | J97: 95 | O97: 350
B98: 8.6251 | C98: 8.64 | D98: 00:01:50.805 | E98: 00:01:51.040 | F98: 204 | G98: 3.52 | H98: 7.42 | I98: 29.66 | J98: 96 | O98: 352
B99: 8.6451 | C99: 8.66 | D99: 00:01:51.045 | E99: 00:01:51.280 | F99: 203 | G99: 3.54 | H99: 7.47 | I99: 29.91 | J99: 97 | O99: 354
B100: 8.6651 | C100: 8.67 | D100: 00:01:51.285 | E100: 00:01:51.520 | F100: 202 | G100: 3.55 | H100: 7.51 | I100: 30.17 | J100: 98 | O100: 355
B101: 8.6751 | C101: 8.69 | D101: 00:01:51.525 | E101: 00:01:51.760 | F101: 201 | G101: 3.57 | H101: 7.56 | I101: 30.42 | J101: 99 | O101: 357
B102: 8.6951 | C102: 8.71 | D102: 00:01:51.765 | E102: 00:01:52 | F102: 200 | G102: 3.59 | H102: 7.6 | I102: 30.68 | J102: 100 | O102: 359
B103: 8.7151 | C103: 8.73 | D103: 00:01:52.005 | E103: 00:01:52.270 | F103: 199 | G103: 3.61 | H103: 7.64 | I103: 30.91 | J103: 101 | O103: 361
B104: 8.7351 | C104: 8.75 | D104: 00:01:52.275 | E104: 00:01:52.540 | F104: 198 | G104: 3.62 | H104: 7.68 | I104: 31.14 | J104: 102 | O104: 362
B105: 8.7551 | C105: 8.77 | D105: 00:01:52.545 | E105: 00:01:52.810 | F105: 197 | G105: 3.64 | H105: 7.72 | I105: 31.38 | J105: 103 | O105: 364
B106: 8.7751 | C106: 8.79 | D106: 00:01:52.815 | E106: 00:01:53.080 | F106: 196 | G106: 3.65 | H106: 7.76 | I106: 31.61 | J106: 104 | O106: 365
B107: 8.7951 | C107: 8.81 | D107: 00:01:53.085 | E107: 00:01:53.350 | F107: 195 | G107: 3.67 | H107: 7.8 | I107: 31.84 | J107: 105 | O107: 367
B108: 8.8151 | C108: 8.83 | D108: 00:01:53.355 | E108: 00:01:53.620 | F108: 194 | G108: 3.68 | H108: 7.84 | I108: 32.07 | J108: 106 | O108: 368
B109: 8.8351 | C109: 8.85 | D109: 00:01:53.625 | E109: 00:01:53.890 | F109: 193 | G109: 3.7 | H109: 7.88 | I109: 32.3 | J109: 107 | O109: 370
B110: 8.8551 | C110: 8.87 | D110: 00:01:53.895 | E110: 00:01:54.160 | F110: 192 | G110: 3.71 | H110: 7.92 | I110: 32.54 | J110: 108 | O110: 371
B111: 8.8751 | C111: 8.9 | D111: 00:01:54.165 | E111: 00:01:54.430 | F111: 191 | G111: 3.73 | H111: 7.96 | I111: 32.77 | J111: 109 | O111: 373
B112: 8.9051 | C112: 8.92 | D112: 00:01:54.435 | E112: 00:01:54.700 | F112: 190 | G112: 3.75 | H112: 8 | I112: 33 | J112: 110 | O112: 375
B113: 8.9251 | C113: 8.94 | D113: 00:01:54.705 | E113: 00:01:54.970 | F113: 189 | G113: 3.76 | H113: 8.04 | I113: 33.23 | J113: 111 | O113: 376
B114: 8.9451 | C114: 8.96 | D114: 00:01:54.975 | E114: 00:01:55.240 | F114: 188 | G114: 3.78 | H114: 8.08 | I114: 33.46 | J114: 112 | O114: 378
B115: 8.9651 | C115: 8.98 | D115: 00:01:55.245 | E115: 00:01:55.510 | F115: 187 | G115: 3.79 | H115: 8.12 | I115: 33.7 | J115: 113 | O115: 379
B116: 8.9851 | C116: 9 | D116: 00:01:55.515 | E116: 00:01:55.780 | F116: 186 | G116: 3.81 | H116: 8.16 | I116: 33.93 | J116: 114 | O116: 381
B117: 9.0051 | C117: 9.02 | D117: 00:01:55.785 | E117: 00:01:56.050 | F117: 185 | G117: 3.82 | H117: 8.2 | I117: 34.16 | J117: 115 | O117: 382
B118: 9.0251 | C118: 9.04 | D118: 00:01:56.055 | E118: 00:01:56.320 | F118: 184 | G118: 3.84 | H118: 8.24 | I118: 34.39 | J118: 116 | O118: 384
B119: 9.0451 | C119: 9.06 | D119: 00:01:56.325 | E119: 00:01:56.590 | F119: 183 | G119: 3.86 | H119: 8.28 | I119: 34.62 | J119: 117 | O119: 386
B120: 9.0651 | C120: 9.08 | D120: 00:01:56.595 | E120: 00:01:56.860 | F120: 182 | G120: 3.87 | H120: 8.32 | I120: 34.86 | J120: 118 | O120: 387
B121: 9.0851 | C121: 9.1 | D121: 00:01:56.865 | E121: 00:01:57.130 | F121: 181 | G121: 3.89 | H121: 8.36 | I121: 35.09 | J121: 119 | O121: 389
B122: 9.1051 | C122: 9.12 | D122: 00:01:57.135 | E122: 00:01:57.400 | F122: 180 | G122: 3.9 | H122: 8.4 | I122: 35.32 | J122: 120 | O122: 390
B123: 9.1251 | C123: 9.14 | D123: 00:01:57.405 | E123: 00:01:57.670 | F123: 179 | G123: 3.92 | H123: 8.44 | I123: 35.55 | J123: 121 | O123: 392
B124: 9.1451 | C124: 9.16 | D124: 00:01:57.675 | E124: 00:01:57.940 | F124: 178 | G124: 3.93 | H124: 8.48 | I124: 35.78 | J124: 122 | O124: 393
B125: 9.1651 | C125: 9.18 | D125: 00:01:57.945 | E125: 00:01:58.210 | F125: 177 | G125: 3.95 | H125: 8.52 | I125: 36.02 | J125: 123 | O125: 395
B126: 9.1851 | C126: 9.2 | D126: 00:01:58.215 | E126: 00:01:58.480 | F126: 176 | G126: 3.96 | H126: 8.56 | I126: 36.25 | J126: 124 | O126: 396
B127: 9.2051 | C127: 9.23 | D127: 00:01:58.485 | E127: 00:01:58.750 | F127: 175 | G127: 3.98 | H127: 8.6 | I127: 36.48 | J127: 125 | O127: 398
B128: 9.2351 | C128: 9.25 | D128: 00:01:58.755 | E128: 00:01:59.020 | F128: 174 | G128: 4 | H128: 8.64 | I128: 36.71 | J128: 126 | O128: 400
B129: 9.2551 | C129: 9.27 | D129: 00:01:59.025 | E129: 00:01:59.290 | F129: 173 | G129: 4.01 | H129: 8.68 | I129: 36.94 | J129: 127 | O129: 401
B130: 9.2751 | C130: 9.29 | D130: 00:01:59.295 | E130: 00:01:59.560 | F130: 172 | G130: =O130/100 -> 4.03 | H130: 8.72 | I130: 37.18 | J130: 128 | O130: 403
B131: 9.2951 | C131: 9.31 | D131: 00:01:59.565 | E131: 00:01:59.830 | F131: 171 | G131: 4.04 | H131: 8.76 | I131: 37.41 | J131: 129 | O131: 404
B132: 9.3151 | C132: 9.33 | D132: 00:01:59.835 | E132: 00:02:00.100 | F132: 170 | G132: 4.06 | H132: 8.8 | I132: 37.64 | J132: 130 | O132: 406
B133: 9.3351 | C133: 9.35 | D133: 00:02:00.105 | E133: 00:02:00.370 | F133: 169 | G133: 4.07 | H133: 8.84 | I133: 37.87 | J133: 131 | O133: 407
B134: 9.3551 | C134: 9.37 | D134: 00:02:00.375 | E134: 00:02:00.640 | F134: 168 | G134: 4.09 | H134: 8.88 | I134: 38.1 | J134: 132 | O134: 409
B135: 9.3751 | C135: 9.39 | D135: 00:02:00.645 | E135: 00:02:00.910 | F135: 167 | G135: 4.1 | H135: 8.92 | I135: 38.34 | J135: 133 | O135: 410
B136: 9.3951 | C136: 9.41 | D136: 00:02:00.915 | E136: 00:02:01.180 | F136: 166 | G136: 4.12 | H136: 8.96 | I136: 38.57 | J136: 134 | O136: 412
B137: 9.4151 | C137: 9.43 | D137: 00:02:01.185 | E137: 00:02:01.450 | F137: 165 | G137: 4.14 | H137: 9 | I137: 38.8 | J137: 135 | O137: 414
B138: 9.4351 | C138: 9.45 | D138: 00:02:01.455 | E138: 00:02:01.720 | F138: 164 | G138: 4.15 | H138: 9.04 | I138: 39.03 | J138: 136 | O138: 415
B139: 9.4551 | C139: 9.47 | D139: 00:02:01.725 | E139: 00:02:01.990 | F139: 163 | G139: 4.17 | H139: 9.08 | I139: 39.26 | J139: 137 | O139: 417
B140: 9.4751 | C140: 9.49 | D140: 00:02:01.995 | E140: 00:02:02.260 | F140: 162 | G140: 4.18 | H140: 9.12 | I140: 39.5 | J140: 138 | O140: 418
B141: 9.4951 | C141: 9.51 | D141: 00:02:02.265 | E141: 00:02:02.530 | F141: 161 | G141: 4.2 | H141: 9.16 | I141: 39.73 | J141: 139 | O141: 420
B142: 9.5151 | C142: 9.53 | D142: 00:02:02.535 | E142: 00:02:02.800 | F142: 160 | G142: 4.21 | H142: 9.2 | I142: 39.96 | J142: 140 | O142: 421
B143: 9.5351 | C143: 9.55 | D143: 00:02:02.805 | E143: 00:02:03.070 | F143: 159 | G143: 4.23 | H143: 9.24 | I143: 40.19 | J143: 141 | O143: 423
B144: 9.5551 | C144: 9.58 | D144: 00:02:03.075 | E144: 00:02:03.340 | F144: 158 | G144: 4.25 | H144: 9.28 | I144: 40.42 | J144: 142 | O144: 425
B145: 9.5851 | C145: 9.6 | D145: 00:02:03.345 | E145: 00:02:03.610 | F145: 157 | G145: 4.26 | H145: 9.32 | I145: 40.66 | J145: 143 | O145: 426
B146: 9.6051 | C146: 9.62 | D146: 00:02:03.615 | E146: 00:02:03.880 | F146: 156 | G146: 4.28 | H146: 9.36 | I146: 40.89 | J146: 144 | O146: 428
B147: 9.6251 | C147: 9.64 | D147: 00:02:03.885 | E147: 00:02:04.150 | F147: 155 | G147: 4.29 | H147: 9.4 | I147: 41.12 | J147: 145 | O147: 429
B148: 9.6451 | C148: 9.66 | D148: 00:02:04.155 | E148: 00:02:04.420 | F148: 154 | G148: 4.31 | H148: 9.44 | I148: 41.35 | J148: 146 | O148: 431
B149: 9.6651 | C149: 9.68 | D149: 00:02:04.425 | E149: 00:02:04.690 | F149: 153 | G149: 4.32 | H149: 9.48 | I149: 41.58 | J149: 147 | O149: 432
B150: 9.6851 | C150: 9.7 | D150: 00:02:04.695 | E150: 00:02:04.960 | F150: 152 | G150: 4.34 | H150: 9.52 | I150: 41.82 | J150: 148 | O150: 434
B151: 9.7051 | C151: 9.72 | D151: 00:02:04.965 | E151: 00:02:05.230 | F151: 151 | G151: 4.35 | H151: 9.56 | I151: 42.05 | J151: 149 | O151: 435
B152: 9.7251 | C152: 9.74 | D152: 00:02:05.235 | E152: 00:02:05.500 | F152: 150 | G152: 4.37 | H152: 9.6 | I152: 42.28 | J152: 150 | O152: 437
B153: 9.7451 | C153: 9.76 | D153: 00:02:05.505 | E153: 00:02:05.800 | F153: 149 | G153: 4.38 | H153: 9.64 | I153: 42.49 | J153: 151 | O153: 438
B154: 9.7651 | C154: 9.79 | D154: 00:02:05.805 | E154: 00:02:06.100 | F154: 148 | G154: 4.4 | H154: 9.67 | I154: 42.7 | J154: 152 | O154: 440
B155: 9.7951 | C155: 9.81 | D155: 00:02:06.105 | E155: 00:02:06.400 | F155: 147 | G155: 4.41 | H155: 9.71 | I155: 42.91 | J155: 153 | O155: 441
B156: 9.8151 | C156: 9.83 | D156: 00:02:06.405 | E156: 00:02:06.700 | F156: 146 | G156: 4.43 | H156: 9.74 | I156: 43.12 | J156: 154 | O156: 443
B157: 9.8351 | C157: 9.85 | D157: 00:02:06.705 | E157: 00:02:07 | F157: 145 | G157: 4.44 | H157: 9.78 | I157: 43.32 | J157: 155 | O157: 444
B158: 9.8551 | C158: 9.88 | D158: 00:02:07.005 | E158: 00:02:07.300 | F158: 144 | G158: 4.45 | H158: 9.82 | I158: 43.53 | J158: 156 | O158: 445
B159: 9.8851 | C159: 9.9 | D159: 00:02:07.305 | E159: 00:02:07.600 | F159: 143 | G159: 4.47 | H159: 9.85 | I159: 43.74 | J159: 157 | O159: 447
B160: 9.9051 | C160: 9.92 | D160: 00:02:07.605 | E160: 00:02:07.900 | F160: 142 | G160: 4.48 | H160: 9.89 | I160: 43.95 | J160: 158 | O160: 448
B161: 9.9251 | C161: 9.95 | D161: 00:02:07.905 | E161: 00:02:08.200 | F161: 141 | G161: 4.5 | H161: 9.92 | I161: 44.16 | J161: 159 | O161: 450
B162: 9.9551 | C162: 9.97 | D162: 00:02:08.205 | E162: 00:02:08.500 | F162: 140 | G162: 4.51 | H162: 9.96 | I162: 44.37 | J162: 160 | O162: 451
B163: 9.9751 | C163: 9.99 | D163: 00:02:08.505 | E163: 00:02:08.800 | F163: 139 | G163: 4.52 | H163: 10 | I163: 44.58 | J163: 161 | O163: 452
B164: 9.9951 | C164: 10.01 | D164: 00:02:08.805 | E164: 00:02:09.100 | F164: 138 | G164: 4.54 | H164: 10.03 | I164: 44.79 | J164: 162 | O164: 454
B165: 10.0151 | C165: 10.04 | D165: 00:02:09.105 | E165: 00:02:09.400 | F165: 137 | G165: 4.55 | H165: 10.07 | I165: 44.99 | J165: 163 | O165: 455
B166: 10.0451 | C166: 10.06 | D166: 00:02:09.405 | E166: 00:02:09.700 | F166: 136 | G166: 4.57 | H166: 10.1 | I166: 45.2 | J166: 164 | O166: 457
B167: 10.0651 | C167: 10.08 | D167: 00:02:09.705 | E167: 00:02:10 | F167: 135 | G167: 4.58 | H167: 10.14 | I167: 45.41 | J167: 165 | O167: 458
B168: 10.0851 | C168: 10.1 | D168: 00:02:10.005 | E168: 00:02:10.300 | F168: 134 | G168: 4.59 | H168: 10.18 | I168: 45.62 | J168: 166 | O168: 459
B169: 10.1051 | C169: 10.13 | D169: 00:02:10.305 | E169: 00:02:10.600 | F169: 133 | G169: 4.61 | H169: 10.21 | I169: 45.83 | J169: 167 | O169: 461
B170: 10.1351 | C170: 10.15 | D170: 00:02:10.605 | E170: 00:02:10.900 | F170: 132 | G170: 4.62 | H170: 10.25 | I170: 46.04 | J170: 168 | O170: 462
B171: 10.1551 | C171: 10.17 | D171: 00:02:10.905 | E171: 00:02:11.200 | F171: 131 | G171: 4.64 | H171: 10.28 | I171: 46.25 | J171: 169 | O171: 464
B172: 10.1751 | C172: 10.2 | D172: 00:02:11.205 | E172: 00:02:11.500 | F172: 130 | G172: 4.65 | H172: 10.32 | I172: 46.46 | J172: 170 | O172: 465
B173: 10.2051 | C173: 10.22 | D173: 00:02:11.505 | E173: 00:02:11.800 | F173: 129 | G173: 4.66 | H173: 10.36 | I173: 46.66 | J173: 171 | O173: 466
B174: 10.2251 | C174: 10.24 | D174: 00:02:11.805 | E174: 00:02:12.100 | F174: 128 | G174: 4.68 | H174: 10.39 | I174: 46.87 | J174: 172 | O174: 468
B175: 10.2451 | C175: 10.26 | D175: 00:02:12.105 | E175: 00:02:12.400 | F175: 127 | G175: 4.69 | H175: 10.43 | I175: 47.08 | J175: 173 | O175: 469
B176: 10.2651 | C176: 10.29 | D176: 00:02:12.405 | E176: 00:02:12.700 | F176: 126 | G176: 4.71 | H176: 10.46 | I176: 47.29 | J176: 174 | O176: 471
B177: 10.2951 | C177: 10.31 | D177: 00:02:12.705 | E177: 00:02:13 | F177: 125 | G177: 4.72 | H177: 10.5 | I177: 47.5 | J177: 175 | O177: 472
B178: 10.3151 | C178: 10.33 | D178: 00:02:13.005 | E178: 00:02:13.300 | F178: 124 | G178: 4.74 | H178: 10.54 | I178: 47.71 | J178: 176 | O178: 474
B179: 10.3351 | C179: 10.36 | D179: 00:02:13.305 | E179: 00:02:13.600 | F179: 123 | G179: 4.75 | H179: 10.57 | I179: 47.92 | J179: 177 | O179: 475
B180: 10.3651 | C180: 10.38 | D180: 00:02:13.605 | E180: 00:02:13.900 | F180: 122 | G180: 4.76 | H180: 10.61 | I180: 48.13 | J180: 178 | O180: 476
B181: 10.3851 | C181: 10.4 | D181: 00:02:13.905 | E181: 00:02:14.200 | F181: 121 | G181: 4.78 | H181: 10.64 | I181: 48.34 | J181: 179 | O181: 478
B182: 10.4051 | C182: 10.42 | D182: 00:02:14.205 | E182: 00:02:14.500 | F182: 120 | G182: 4.79 | H182: 10.68 | I182: 48.54 | J182: 180 | O182: 479
B183: 10.4251 | C183: 10.45 | D183: 00:02:14.505 | E183: 00:02:14.800 | F183: 119 | G183: 4.81 | H183: 10.72 | I183: 48.75 | J183: 181 | O183: 481
B184: 10.4551 | C184: 10.47 | D184: 00:02:14.805 | E184: 00:02:15.100 | F184: 118 | G184: 4.82 | H184: 10.75 | I184: 48.96 | J184: 182 | O184: 482
B185: 10.4751 | C185: 10.49 | D185: 00:02:15.105 | E185: 00:02:15.400 | F185: 117 | G185: 4.83 | H185: 10.79 | I185: 49.17 | J185: 183 | O185: 483
B186: 10.4951 | C186: 10.52 | D186: 00:02:15.405 | E186: 00:02:15.700 | F186: 116 | G186: 4.85 | H186: 10.82 | I186: 49.38 | J186: 184 | O186: 485
B187: 10.5251 | C187: 10.54 | D187: 00:02:15.705 | E187: 00:02:16 | F187: 115 | G187: 4.86 | H187: 10.86 | I187: 49.59 | J187: 185 | O187: 486
B188: 10.5451 | C188: 10.56 | D188: 00:02:16.005 | E188: 00:02:16.300 | F188: 114 | G188: 4.88 | H188: 10.9 | I188: 49.8 | J188: 186 | O188: 488
B189: 10.5651 | C189: 10.58 | D189: 00:02:16.305 | E189: 00:02:16.600 | F189: 113 | G189: 4.89 | H189: 10.93 | I189: 50.01 | J189: 187 | O189: 489
B190: 10.5851 | C190: 10.61 | D190: 00:02:16.605 | E190: 00:02:16.900 | F190: 112 | G190: 4.9 | H190: 10.97 | I190: 50.21 | J190: 188 | O190: 490
B191: 10.6151 | C191: 10.63 | D191: 00:02:16.905 | E191: 00:02:17.200 | F191: 111 | G191: 4.92 | H191: 11 | I191: 50.42 | J191: 189 | O191: 492
B192: 10.6351 | C192: 10.65 | D192: 00:02:17.205 | E192: 00:02:17.500 | F192: 110 | G192: 4.93 | H192: 11.04 | I192: 50.63 | J192: 190 | O192: 493
B193: 10.6551 | C193: 10.67 | D193: 00:02:17.505 | E193: 00:02:17.800 | F193: 109 | G193: 4.95 | H193: 11.08 | I193: 50.84 | J193: 191 | O193: 495
B194: 10.6751 | C194: 10.7 | D194: 00:02:17.805 | E194: 00:02:18.100 | F194: 108 | G194: =O194/100 -> 4.96 | H194: 11.11 | I194: 51.05 | J194: 192 | O194: 496
B195: 10.7051 | C195: 10.72 | D195: 00:02:18.105 | E195: 00:02:18.400 | F195: 107 | G195: 4.97 | H195: 11.15 | I195: 51.26 | J195: 193 | O195: 497
B196: 10.7251 | C196: 10.74 | D196: 00:02:18.405 | E196: 00:02:18.700 | F196: 106 | G196: 4.99 | H196: 11.18 | I196: 51.47 | J196: 194 | O196: 499
B197: 10.7451 | C197: 10.77 | D197: 00:02:18.705 | E197: 00:02:19 | F197: 105 | G197: 5 | H197: 11.22 | I197: 51.68 | J197: 195 | O197: 500
B198: 10.7751 | C198: 10.79 | D198: 00:02:19.005 | E198: 00:02:19.300 | F198: 104 | G198: 5.02 | H198: 11.26 | I198: 51.88 | J198: 196 | O198: 502
B199: 10.7951 | C199: 10.81 | D199: 00:02:19.305 | E199: 00:02:19.600 | F199: 103 | G199: 5.03 | H199: 11.29 | I199: 52.09 | J199: 197 | O199: 503
B200: 10.8151 | C200: 10.83 | D200: 00:02:19.605 | E200: 00:02:19.900 | F200: 102 | G200: 5.04 | H200: 11.33 | I200: 52.3 | J200: 198 | O200: 504
... 102 more rows

Sheet Be
A1: III. korcsoport LEÁNY Összetett verseny
A3: Név | B3: Sz.év | C3: 60 m | E3: Távolugrás | G3: Klabdahajítás | I3: 600 m | K3: Összpont | L3: helyezés | M3: Iskola
A4: Sasvári Dorina | B4: 2005 | D4: =IF(C4<6.19,0,VLOOKUP(C4,rfut,5,TRUE)) -> 0 | F4: =IF(E4<1.79,0,VLOOKUP(E4,távol,4,TRUE)) -> 0 | H4: =IF(G4<4,0,VLOOKUP(G4,kisl,2,TRUE)) -> 0 | J4: =IF(I4<leány!$D$2,0,VLOOKUP(I4,hfut,3,TRUE)) -> 0 | K4: =SUM(D4,F4,H4,J4) -> 0 | L4: =RANK(K4,Egyéni!$L$3:$L$156,0) -> 41 | M4: Dunakeszi Radnóti Miklós Gimnázium
D5: 0 | F5: 0 | H5: 0 | J5: =IF(I5<leány!$D$2,0,VLOOKUP(I5,hfut,3,TRUE)) -> 0 | K5: =SUM(D5,F5,H5,J5) -> 0 | L5: =RANK(K5,Egyéni!$L$3:$L$156,0) -> 41
D6: 0 | F6: 0 | H6: 0 | J6: =IF(I6<leány!$D$2,0,VLOOKUP(I6,hfut,3,TRUE)) -> 0 | K6: 0 | L6: =RANK(K6,Egyéni!$L$3:$L$156,0) -> 41
D7: 0 | F7: 0 | H7: 0 | J7: =IF(I7<leány!$D$2,0,VLOOKUP(I7,hfut,3,TRUE)) -> 0 | K7: 0 | L7: =RANK(K7,Egyéni!$L$3:$L$156,0) -> 41
D8: 0 | F8: 0 | H8: 0 | J8: =IF(I8<leány!$D$2,0,VLOOKUP(I8,hfut,3,TRUE)) -> 0 | K8: 0 | L8: =RANK(K8,Egyéni!$L$3:$L$156,0) -> 41
D9: 0 | F9: 0 | H9: 0 | J9: =IF(I9<leány!$D$2,0,VLOOKUP(I9,hfut,3,TRUE)) -> 0 | K9: 0 | L9: =RANK(K9,Egyéni!$L$3:$L$156,0) -> 41
D10: 0 | F10: 0 | H10: 0 | J10: =IF(I10<leány!$D$2,0,VLOOKUP(I10,hfut,3,TRUE)) -> 0 | K10: 0 | L10: =RANK(K10,Egyéni!$L$3:$L$156,0) -> 41
D11: 0 | F11: 0 | H11: 0 | J11: =IF(I11<leány!$D$2,0,VLOOKUP(I11,hfut,3,TRUE)) -> 0 | K11: 0 | L11: =RANK(K11,Egyéni!$L$3:$L$156,0) -> 41
D12: 0 | F12: 0 | H12: 0 | J12: =IF(I12<leány!$D$2,0,VLOOKUP(I12,hfut,3,TRUE)) -> 0 | K12: 0 | L12: =RANK(K12,Egyéni!$L$3:$L$156,0) -> 41
D13: 0 | F13: 0 | H13: 0 | J13: =IF(I13<leány!$D$2,0,VLOOKUP(I13,hfut,3,TRUE)) -> 0 | K13: 0 | L13: =RANK(K13,Egyéni!$L$3:$L$156,0) -> 41
D14: 0 | F14: 0 | H14: 0 | J14: =IF(I14<leány!$D$2,0,VLOOKUP(I14,hfut,3,TRUE)) -> 0 | K14: 0 | L14: =RANK(K14,Egyéni!$L$3:$L$156,0) -> 41
D15: 0 | F15: 0 | H15: 0 | J15: =IF(I15<leány!$D$2,0,VLOOKUP(I15,hfut,3,TRUE)) -> 0 | K15: 0 | L15: =RANK(K15,Egyéni!$L$3:$L$156,0) -> 41
D16: 0 | F16: 0 | H16: 0 | J16: =IF(I16<leány!$D$2,0,VLOOKUP(I16,hfut,3,TRUE)) -> 0 | K16: 0 | L16: =RANK(K16,Egyéni!$L$3:$L$156,0) -> 41
D17: 0 | F17: 0 | H17: 0 | J17: =IF(I17<leány!$D$2,0,VLOOKUP(I17,hfut,3,TRUE)) -> 0 | K17: 0 | L17: =RANK(K17,Egyéni!$L$3:$L$156,0) -> 41
D18: 0 | F18: 0 | H18: 0 | J18: =IF(I18<leány!$D$2,0,VLOOKUP(I18,hfut,3,TRUE)) -> 0 | K18: 0 | L18: =RANK(K18,Egyéni!$L$3:$L$156,0) -> 41
D19: 0 | F19: 0 | H19: 0 | J19: =IF(I19<leány!$D$2,0,VLOOKUP(I19,hfut,3,TRUE)) -> 0 | K19: 0 | L19: =RANK(K19,Egyéni!$L$3:$L$156,0) -> 41
D20: 0 | F20: 0 | H20: 0 | J20: =IF(I20<leány!$D$2,0,VLOOKUP(I20,hfut,3,TRUE)) -> 0 | K20: 0 | L20: =RANK(K20,Egyéni!$L$3:$L$156,0) -> 41
D21: 0 | F21: 0 | H21: 0 | J21: =IF(I21<leány!$D$2,0,VLOOKUP(I21,hfut,3,TRUE)) -> 0 | K21: 0 | L21: =RANK(K21,Egyéni!$L$3:$L$156,0) -> 41
D22: 0 | F22: 0 | H22: 0 | J22: =IF(I22<leány!$D$2,0,VLOOKUP(I22,hfut,3,TRUE)) -> 0 | K22: 0 | L22: =RANK(K22,Egyéni!$L$3:$L$156,0) -> 41
D23: 0 | F23: 0 | H23: 0 | J23: =IF(I23<leány!$D$2,0,VLOOKUP(I23,hfut,3,TRUE)) -> 0 | K23: 0 | L23: =RANK(K23,Egyéni!$L$3:$L$156,0) -> 41
D24: 0 | F24: 0 | H24: 0 | J24: =IF(I24<leány!$D$2,0,VLOOKUP(I24,hfut,3,TRUE)) -> 0 | K24: 0 | L24: =RANK(K24,Egyéni!$L$3:$L$156,0) -> 41
D25: 0 | F25: 0 | H25: 0 | J25: =IF(I25<leány!$D$2,0,VLOOKUP(I25,hfut,3,TRUE)) -> 0 | K25: 0 | L25: =RANK(K25,Egyéni!$L$3:$L$156,0) -> 41
A27: DUNAKESZI FAZEKAS MIHÁLY NÉMET NYELVOKTATÓ NEMZETISÉGI ÁLTALÁNOS ISKOLA | M27: =RANK(M29,Csapat!$C$3:P30,0) -> 2
A28: Név | B28: Sz.év | C28: 60 m | E28: Távolugrás | G28: Klabdahajítás | I28: 600 m | K28: Összpont | L28: Helyezés
A29: Békefi Emese Dóra | B29: 2006 | C29: 9.57 | D29: =IF(C29<6.19,0,VLOOKUP(C29,rfut,5,TRUE)) -> 158 | E29: 3.56 | F29: =IF(E29<1.79,0,VLOOKUP(E29,távol,4,TRUE)) -> 98 | G29: 24.3 | H29: =IF(G29<4,0,VLOOKUP(G29,kisl,2,TRUE)) -> 75 | I29: 00:02:15.580 | J29: =IF(I29<leány!$D$2,0,VLOOKUP(I29,hfut,3,TRUE)) -> 116 | K29: =SUM(D29,F29,H29,J29) -> 447 | L29: =RANK(K29,Egyéni!$L$3:$L$156,0) -> 20 | M29: =SUM(K29:K34)-MIN(K29:K34) -> 2514
A30: Décsei Krisztina | B30: 2006 | C30: 9.82 | D30: 146 | E30: 4.15 | F30: 136 | G30: 39.5 | H30: 138 | I30: 00:02:03.660 | J30: =IF(I30<leány!$D$2,0,VLOOKUP(I30,hfut,3,TRUE)) -> 156 | K30: 576 | L30: =RANK(K30,Egyéni!$L$3:$L$156,0) -> 3
A31: Éles Zsófia | B31: 2005 | C31: 9.08 | D31: 182 | E31: 3.93 | F31: 122 | G31: 25.4 | H31: 79 | I31: 00:02:25.190 | J31: =IF(I31<leány!$D$2,0,VLOOKUP(I31,hfut,3,TRUE)) -> 85 | K31: 468 | L31: =RANK(K31,Egyéni!$L$3:$L$156,0) -> 15
A32: Gyuricza Laura | B32: 2005 | C32: 10.27 | D32: 126 | E32: 4.06 | F32: 130 | G32: 32.3 | H32: 107 | I32: 00:02:23.460 | J32: =IF(I32<leány!$D$2,0,VLOOKUP(I32,hfut,3,TRUE)) -> 91 | K32: 454 | L32: =RANK(K32,Egyéni!$L$3:$L$156,0) -> 18
A33: Gyurik Titanilla | B33: 2005 | C33: 10.69 | D33: 108 | E33: 3.21 | F33: 78 | G33: 20 | H33: 58 | I33: 00:02:18.450 | J33: =IF(I33<leány!$D$2,0,VLOOKUP(I33,hfut,3,TRUE)) -> 106 | K33: 350 | L33: =RANK(K33,Egyéni!$L$3:$L$156,0) -> 29
A34: Temesvári Tinetta Vivien | B34: 2005 | C34: 9.42 | D34: 165 | E34: 3.93 | F34: 122 | G34: 36.2 | H34: 123 | I34: 00:02:02.890 | J34: =IF(I34<leány!$D$2,0,VLOOKUP(I34,hfut,3,TRUE)) -> 159 | K34: 569 | L34: =RANK(K34,Egyéni!$L$3:$L$156,0) -> 4
A37: DUNAKESZI SZENT ISTVÁN ÁLTALÁNOS ISKOLA | M37: =RANK(M39,Csapat!$C$3:P40,0) -> 4
A38: Név | B38: Sz.év | C38: 60 m | E38: Távolugrás | G38: Klabdahajítás | I38: 600 m | K38: Összpont | L38: Helyezés
A39: Erdész Anna | B39: 2006 | C39: 9.89 | D39: =IF(C39<6.19,0,VLOOKUP(C39,rfut,5,TRUE)) -> 143 | E39: 3.32 | F39: =IF(E39<1.79,0,VLOOKUP(E39,távol,4,TRUE)) -> 84 | G39: 30.7 | H39: =IF(G39<4,0,VLOOKUP(G39,kisl,2,TRUE)) -> 100 | I39: 00:02:24.250 | J39: =IF(I39<leány!$D$2,0,VLOOKUP(I39,hfut,3,TRUE)) -> 88 | K39: =SUM(D39,F39,H39,J39) -> 415 | L39: =RANK(K39,Egyéni!$L$3:$L$156,0) -> 22 | M39: =SUM(K39:K44)-MIN(K39:K44) -> 2205
A40: Fülöp Hanna | B40: 2006 | C40: 10.22 | D40: 129 | E40: 3.23 | F40: 79 | G40: 28.8 | H40: 92 | I40: 00:02:22.940 | J40: =IF(I40<leány!$D$2,0,VLOOKUP(I40,hfut,3,TRUE)) -> 92 | K40: 392 | L40: =RANK(K40,Egyéni!$L$3:$L$156,0) -> 25
A41: Gedeon Réka | B41: 2005 | C41: 9.77 | D41: 148 | E41: 3.58 | F41: 99 | G41: 28.8 | H41: 92 | I41: 00:02:28.230 | J41: =IF(I41<leány!$D$2,0,VLOOKUP(I41,hfut,3,TRUE)) -> 76 | K41: 415 | L41: =RANK(K41,Egyéni!$L$3:$L$156,0) -> 22
A42: Avarkeszi Dóra Szilvia | B42: 2006 | C42: 10.26 | D42: 127 | E42: 3.8 | F42: 113 | G42: 19.7 | H42: 56 | I42: 00:01:59.620 | J42: =IF(I42<leány!$D$2,0,VLOOKUP(I42,hfut,3,TRUE)) -> 171 | K42: 467 | L42: =RANK(K42,Egyéni!$L$3:$L$156,0) -> 16
A43: Király Liliom | B43: 2005 | C43: 9.67 | D43: 153 | E43: 4.03 | F43: 128 | G43: 29 | H43: 93 | I43: 00:02:07.890 | J43: =IF(I43<leány!$D$2,0,VLOOKUP(I43,hfut,3,TRUE)) -> 142 | K43: 516 | L43: =RANK(K43,Egyéni!$L$3:$L$156,0) -> 10
A44: Sziráki Míra Enikő | B44: 2006 | C44: 10.47 | D44: 118 | E44: 3.05 | F44: 68 | G44: 25.5 | H44: 79 | I44: 00:02:33.410 | J44: =IF(I44<leány!$D$2,0,VLOOKUP(I44,hfut,3,TRUE)) -> 60 | K44: 325 | L44: =RANK(K44,Egyéni!$L$3:$L$156,0) -> 33
A47: DUNAKESZI KŐRÖSI CSOMA SÁNDOR ÁLTALÁNOS ISKOLA | M47: =RANK(M49,Csapat!$C$3:P50,0) -> 1
A48: Név | B48: Sz.év | C48: 60 m | E48: Távolugrás | G48: Klabdahajítás | I48: 600 m | K48: Összpont | L48: Helyezés
A49: Erdős Kinga | B49: 2006 | C49: 10.14 | D49: =IF(C49<6.19,0,VLOOKUP(C49,rfut,5,TRUE)) -> 132 | E49: 4.02 | F49: =IF(E49<1.79,0,VLOOKUP(E49,távol,4,TRUE)) -> 127 | G49: 24.4 | H49: =IF(G49<4,0,VLOOKUP(G49,kisl,2,TRUE)) -> 75 | I49: 00:02:19.820 | J49: =IF(I49<leány!$D$2,0,VLOOKUP(I49,hfut,3,TRUE)) -> 102 | K49: =SUM(D49,F49,H49,J49) -> 436 | L49: =RANK(K49,Egyéni!$L$3:$L$156,0) -> 21 | M49: =SUM(K49:K54)-MIN(K49:K54) -> 2761
A50: Horváth Boglárka | B50: 2006 | C50: 9.92 | D50: 142 | E50: 4.05 | F50: 129 | G50: 36.2 | H50: 123 | I50: 00:02:16.530 | J50: =IF(I50<leány!$D$2,0,VLOOKUP(I50,hfut,3,TRUE)) -> 113 | K50: 507 | L50: =RANK(K50,Egyéni!$L$3:$L$156,0) -> 11
A51: Kapuvári Liliána | B51: 2006 | C51: 9.8 | D51: 147 | E51: 4.14 | F51: 135 | G51: 34.7 | H51: 117 | I51: 00:02:04.540 | J51: =IF(I51<leány!$D$2,0,VLOOKUP(I51,hfut,3,TRUE)) -> 153 | K51: 552 | L51: =RANK(K51,Egyéni!$L$3:$L$156,0) -> 6
A52: Őzse Dorka | B52: 2005 | C52: 9.42 | D52: 165 | E52: 4.32 | F52: 147 | G52: 29.4 | H52: 95 | I52: 00:02:13.570 | J52: =IF(I52<leány!$D$2,0,VLOOKUP(I52,hfut,3,TRUE)) -> 123 | K52: 530 | L52: =RANK(K52,Egyéni!$L$3:$L$156,0) -> 8
A53: Zarándi Dorottya Eszter | B53: 2006 | C53: 9.11 | D53: 180 | E53: 4.66 | F53: 171 | G53: 36.6 | H53: 125 | I53: 00:02:11.500 | J53: =IF(I53<leány!$D$2,0,VLOOKUP(I53,hfut,3,TRUE)) -> 130 | K53: 606 | L53: =RANK(K53,Egyéni!$L$3:$L$156,0) -> 1
A54: Zarándi Edina Réka | B54: 2006 | C54: 9.24 | D54: 174 | E54: 4.2 | F54: 139 | G54: 31.8 | H54: 104 | I54: 00:02:05.700 | J54: =IF(I54<leány!$D$2,0,VLOOKUP(I54,hfut,3,TRUE)) -> 149 | K54: 566 | L54: =RANK(K54,Egyéni!$L$3:$L$156,0) -> 5
A57: DUNAKESZI RADNÓTI MIKLÓS GIMNÁZIUM | M57: =RANK(M59,Csapat!$C$3:P60,0) -> 3
A58: Név | B58: Sz.év | C58: 60 m | E58: Távolugrás | G58: Klabdahajítás | I58: 600 m | K58: Összpont | L58: Helyezés
A59: Víg Fanni | B59: 2005 | C59: 9.74 | D59: =IF(C59<6.19,0,VLOOKUP(C59,rfut,5,TRUE)) -> 150 | E59: 3.87 | F59: =IF(E59<1.79,0,VLOOKUP(E59,távol,4,TRUE)) -> 118 | G59: 26 | H59: =IF(G59<4,0,VLOOKUP(G59,kisl,2,TRUE)) -> 81 | I59: 00:02:19.400 | J59: =IF(I59<leány!$D$2,0,VLOOKUP(I59,hfut,3,TRUE)) -> 103 | K59: =SUM(D59,F59,H59,J59) -> 452 | L59: =RANK(K59,Egyéni!$L$3:$L$156,0) -> 19 | M59: =SUM(K59:K64)-MIN(K59:K64) -> 2269
A60: Szilágyi Ágota | B60: 2005 | C60: 9.35 | D60: 169 | E60: 3.78 | F60: 112 | G60: 27.6 | H60: 87 | I60: 00:02:01.310 | J60: =IF(I60<leány!$D$2,0,VLOOKUP(I60,hfut,3,TRUE)) -> 165 | K60: 533 | L60: =RANK(K60,Egyéni!$L$3:$L$156,0) -> 7
A61: Molnár Dóra | B61: 2006 | C61: 9.58 | D61: 158 | E61: 3.74 | F61: 109 | G61: 36.4 | H61: 124 | I61: 00:02:19.760 | J61: =IF(I61<leány!$D$2,0,VLOOKUP(I61,hfut,3,TRUE)) -> 102 | K61: 493 | L61: =RANK(K61,Egyéni!$L$3:$L$156,0) -> 13
A62: Moni Csenge | B62: 2006 | C62: 10.1 | D62: 134 | E62: 3.9 | F62: 120 | G62: 30.1 | H62: 97 | I62: 00:02:18.860 | J62: =IF(I62<leány!$D$2,0,VLOOKUP(I62,hfut,3,TRUE)) -> 105 | K62: 456 | L62: =RANK(K62,Egyéni!$L$3:$L$156,0) -> 17
A63: Sasvári Dorina | B63: 2005 | C63: 10.77 | D63: 105 | E63: 3.27 | F63: 81 | G63: 19.7 | H63: 56 | I63: 00:02:22.640 | J63: =IF(I63<leány!$D$2,0,VLOOKUP(I63,hfut,3,TRUE)) -> 93 | K63: 335 | L63: =RANK(K63,Egyéni!$L$3:$L$156,0) -> 31
A64: Krúdy Hanna | B64: 2006 | C64: 10.76 | D64: 105 | E64: 3.16 | F64: 75 | G64: 26.2 | H64: 82 | I64: 00:02:35.500 | J64: =IF(I64<leány!$D$2,0,VLOOKUP(I64,hfut,3,TRUE)) -> 54 | K64: 316 | L64: =RANK(K64,Egyéni!$L$3:$L$156,0) -> 34
A67: DUNAKESZI BÁRDOS LAJOS ÁLTALÁNOS ISKOLA | M67: =RANK(M69,Csapat!$C$3:P70,0) -> 5
A68: Név | B68: Sz.év | C68: 60 m | E68: Távolugrás | G68: Klabdahajítás | I68: 600 m | K68: Összpont | L68: Helyezés
A69: Bogáti Bianka | B69: 2005 | C69: 9.15 | D69: =IF(C69<6.19,0,VLOOKUP(C69,rfut,5,TRUE)) -> 178 | E69: 3.7 | F69: =IF(E69<1.79,0,VLOOKUP(E69,távol,4,TRUE)) -> 107 | G69: 24.5 | H69: =IF(G69<4,0,VLOOKUP(G69,kisl,2,TRUE)) -> 75 | I69: 00:02:07.200 | J69: =IF(I69<leány!$D$2,0,VLOOKUP(I69,hfut,3,TRUE)) -> 144 | K69: =SUM(D69,F69,H69,J69) -> 504 | L69: =RANK(K69,Egyéni!$L$3:$L$156,0) -> 12 | M69: =SUM(K69:K74)-MIN(K69:K74) -> 2106
A70: Tikász Emma | B70: 2005 | C70: 10.06 | D70: 136 | E70: 3.66 | F70: 104 | G70: 19.3 | H70: 55 | I70: 00:02:42.340 | J70: =IF(I70<leány!$D$2,0,VLOOKUP(I70,hfut,3,TRUE)) -> 35 | K70: 330 | L70: =RANK(K70,Egyéni!$L$3:$L$156,0) -> 32
A71: Volentics Anna | B71: 2005 | C71: 10.42 | D71: 120 | E71: 3.37 | F71: 87 | G71: 25.3 | H71: 78 | I71: 00:02:22.140 | J71: =IF(I71<leány!$D$2,0,VLOOKUP(I71,hfut,3,TRUE)) -> 95 | K71: 380 | L71: =RANK(K71,Egyéni!$L$3:$L$156,0) -> 27
A72: Agócs Lili | B72: 2005 | C72: 10.89 | D72: 99 | E72: 3.33 | F72: 85 | G72: 14.3 | H72: 37 | I72: 00:02:28.230 | J72: =IF(I72<leány!$D$2,0,VLOOKUP(I72,hfut,3,TRUE)) -> 76 | K72: 297 | L72: =RANK(K72,Egyéni!$L$3:$L$156,0) -> 37
A73: Bán Eszter | B73: 2005 | C73: 8.83 | D73: 194 | E73: 4.77 | F73: 178 | G73: 27.8 | H73: 88 | I73: 00:02:09.770 | J73: =IF(I73<leány!$D$2,0,VLOOKUP(I73,hfut,3,TRUE)) -> 135 | K73: 595 | L73: =RANK(K73,Egyéni!$L$3:$L$156,0) -> 2
A74: Dankó Míra | B74: 2006 | D74: 0 | F74: 0 | H74: 0 | J74: =IF(I74<leány!$D$2,0,VLOOKUP(I74,hfut,3,TRUE)) -> 0 | K74: 0 | L74: =RANK(K74,Egyéni!$L$3:$L$156,0) -> 41
A77: Gödi Németh László Általános Iskola és Alapfokú Művészeti Iskola | M77: =RANK(M79,Csapat!$C$3:P80,0) -> 6
A78: Név | B78: Sz.év | C78: 60 m | E78: Távolugrás | G78: Klabdahajítás | I78: 600 m | K78: Összpont | L78: Helyezés
A79: Füzi Dorina | B79: 2006 | C79: 10.25 | D79: =IF(C79<6.19,0,VLOOKUP(C79,rfut,5,TRUE)) -> 127 | E79: 3.56 | F79: =IF(E79<1.79,0,VLOOKUP(E79,távol,4,TRUE)) -> 98 | G79: 27 | H79: =IF(G79<4,0,VLOOKUP(G79,kisl,2,TRUE)) -> 85 | I79: 00:02:26.310 | J79: =IF(I79<leány!$D$2,0,VLOOKUP(I79,hfut,3,TRUE)) -> 82 | K79: =SUM(D79,F79,H79,J79) -> 392 | L79: =RANK(K79,Egyéni!$L$3:$L$156,0) -> 25 | M79: =SUM(K79:K84)-MIN(K79:K84) -> 2105
A80: Gulyás Csenge | B80: 2006 | C80: 11.33 | D80: 82 | E80: 3.36 | F80: 87 | G80: 30.9 | H80: 100 | I80: 00:02:29.910 | J80: =IF(I80<leány!$D$2,0,VLOOKUP(I80,hfut,3,TRUE)) -> 71 | K80: 340 | L80: =RANK(K80,Egyéni!$L$3:$L$156,0) -> 30
A81: Gyürky Renáta | B81: 2006 | C81: 10.41 | D81: 120 | E81: 3.06 | F81: 69 | G81: 27.4 | H81: 87 | I81: 00:02:21.910 | J81: =IF(I81<leány!$D$2,0,VLOOKUP(I81,hfut,3,TRUE)) -> 95 | K81: 371 | L81: =RANK(K81,Egyéni!$L$3:$L$156,0) -> 28
A82: Horváth Lilla Eszter | B82: 2005 | C82: 10 | D82: 138 | E82: 3.86 | F82: 117 | G82: 32.2 | H82: 106 | I82: 00:02:00.390 | J82: =IF(I82<leány!$D$2,0,VLOOKUP(I82,hfut,3,TRUE)) -> 168 | K82: 529 | L82: =RANK(K82,Egyéni!$L$3:$L$156,0) -> 9
A83: Kovács Jázmin | B83: 2005 | C83: 9.74 | D83: 150 | E83: 3.43 | F83: 91 | G83: 34.4 | H83: 116 | I83: 00:02:15.580 | J83: =IF(I83<leány!$D$2,0,VLOOKUP(I83,hfut,3,TRUE)) -> 116 | K83: 473 | L83: =RANK(K83,Egyéni!$L$3:$L$156,0) -> 14
D84: 0 | F84: 0 | H84: 0 | J84: =IF(I84<leány!$D$2,0,VLOOKUP(I84,hfut,3,TRUE)) -> 0 | K84: 0 | L84: =RANK(K84,Egyéni!$L$3:$L$156,0) -> 41
A87: Dunakeszi Széchenyi István Általános Iskola | M87: =RANK(M89,Csapat!$C$3:P90,0) -> 7
A88: Név | B88: Sz.év | C88: 60 m | E88: Távolugrás | G88: Klabdahajítás | I88: 600 m | K88: Összpont | L88: Helyezés
A89: Becsák Eszter | B89: 2006 | C89: 11.02 | D89: =IF(C89<6.19,0,VLOOKUP(C89,rfut,5,TRUE)) -> 94 | E89: 2.93 | F89: =IF(E89<1.79,0,VLOOKUP(E89,távol,4,TRUE)) -> 61 | G89: 24.2 | H89: =IF(G89<4,0,VLOOKUP(G89,kisl,2,TRUE)) -> 74 | I89: 00:02:57.840 | J89: =IF(I89<leány!$D$2,0,VLOOKUP(I89,hfut,3,TRUE)) -> 0 | K89: =SUM(D89,F89,H89,J89) -> 229 | L89: =RANK(K89,Egyéni!$L$3:$L$156,0) -> 39 | M89: =SUM(K89:K94)-MIN(K89:K94) -> 1494
A90: Biczó Barbara | B90: 2005 | C90: 10.02 | D90: 137 | E90: 3.71 | F90: 108 | G90: 22 | H90: 66 | I90: 00:02:24.680 | J90: =IF(I90<leány!$D$2,0,VLOOKUP(I90,hfut,3,TRUE)) -> 87 | K90: 398 | L90: =RANK(K90,Egyéni!$L$3:$L$156,0) -> 24
A91: Fézer Ramona | B91: 2005 | C91: 12.01 | D91: 55 | E91: 3.4 | F91: 89 | G91: 26.8 | H91: 84 | I91: 00:03:09.920 | J91: =IF(I91<leány!$D$2,0,VLOOKUP(I91,hfut,3,TRUE)) -> 0 | K91: 228 | L91: =RANK(K91,Egyéni!$L$3:$L$156,0) -> 40
A92: Horváth Nikolett Luca | B92: 2005 | C92: 11.56 | D92: 73 | E92: 3.29 | F92: 82 | G92: 19.9 | H92: 57 | I92: 00:02:46.300 | J92: =IF(I92<leány!$D$2,0,VLOOKUP(I92,hfut,3,TRUE)) -> 24 | K92: 236 | L92: =RANK(K92,Egyéni!$L$3:$L$156,0) -> 38
A93: Koppányi Katalin | B93: 2005 | C93: 10.56 | D93: 114 | E93: 3.36 | F93: 87 | G93: 19.9 | H93: 57 | I93: 00:02:34.300 | J93: =IF(I93<leány!$D$2,0,VLOOKUP(I93,hfut,3,TRUE)) -> 58 | K93: 316 | L93: =RANK(K93,Egyéni!$L$3:$L$156,0) -> 34
A94: Lévai-Jenet Viktória | B94: 2005 | C94: 10.19 | D94: 130 | E94: 3.71 | F94: 108 | G94: 25 | H94: 77 | I94: 00:02:56.370 | J94: =IF(I94<leány!$D$2,0,VLOOKUP(I94,hfut,3,TRUE)) -> 0 | K94: 315 | L94: =RANK(K94,Egyéni!$L$3:$L$156,0) -> 36
M97: =RANK(M99,Csapat!$C$3:P100,0) -> 8
A98: Név | B98: Sz.év | C98: 60 m | E98: Távolugrás | G98: Klabdahajítás | I98: 600 m | K98: Összpont | L98: Helyezés
D99: =IF(C99<6.19,0,VLOOKUP(C99,rfut,5,TRUE)) -> 0 | F99: =IF(E99<1.79,0,VLOOKUP(E99,távol,4,TRUE)) -> 0 | H99: =IF(G99<4,0,VLOOKUP(G99,kisl,2,TRUE)) -> 0 | J99: =IF(I99<leány!$D$2,0,VLOOKUP(I99,hfut,3,TRUE)) -> 0 | K99: =SUM(D99,F99,H99,J99) -> 0 | L99: =RANK(K99,Egyéni!$L$3:$L$156,0) -> 41 | M99: =SUM(K99:K104)-MIN(K99:K104) -> 0
D100: 0 | F100: 0 | H100: 0 | J100: =IF(I100<leány!$D$2,0,VLOOKUP(I100,hfut,3,TRUE)) -> 0 | K100: 0 | L100: =RANK(K100,Egyéni!$L$3:$L$156,0) -> 41
D101: 0 | F101: 0 | H101: 0 | J101: =IF(I101<leány!$D$2,0,VLOOKUP(I101,hfut,3,TRUE)) -> 0 | K101: 0 | L101: =RANK(K101,Egyéni!$L$3:$L$156,0) -> 41
D102: 0 | F102: 0 | H102: 0 | J102: =IF(I102<leány!$D$2,0,VLOOKUP(I102,hfut,3,TRUE)) -> 0 | K102: 0 | L102: =RANK(K102,Egyéni!$L$3:$L$156,0) -> 41
D103: 0 | F103: 0 | H103: 0 | J103: =IF(I103<leány!$D$2,0,VLOOKUP(I103,hfut,3,TRUE)) -> 0 | K103: 0 | L103: =RANK(K103,Egyéni!$L$3:$L$156,0) -> 41
D104: 0 | F104: 0 | H104: 0 | J104: =IF(I104<leány!$D$2,0,VLOOKUP(I104,hfut,3,TRUE)) -> 0 | K104: 0 | L104: =RANK(K104,Egyéni!$L$3:$L$156,0) -> 41
M107: =RANK(M109,Csapat!$C$3:P110,0) -> 8
A108: Név | B108: Sz.év | C108: 60 m | E108: Távolugrás | G108: Klabdahajítás | I108: 600 m | K108: Összpont | L108: Helyezés
D109: =IF(C109<6.19,0,VLOOKUP(C109,rfut,5,TRUE)) -> 0 | F109: =IF(E109<1.79,0,VLOOKUP(E109,távol,4,TRUE)) -> 0 | H109: =IF(G109<4,0,VLOOKUP(G109,kisl,2,TRUE)) -> 0 | J109: =IF(I109<leány!$D$2,0,VLOOKUP(I109,hfut,3,TRUE)) -> 0 | K109: =SUM(D109,F109,H109,J109) -> 0 | L109: =RANK(K109,Egyéni!$L$3:$L$156,0) -> 41 | M109: =SUM(K109:K114)-MIN(K109:K114) -> 0
D110: 0 | F110: 0 | H110: 0 | J110: =IF(I110<leány!$D$2,0,VLOOKUP(I110,hfut,3,TRUE)) -> 0 | K110: 0 | L110: =RANK(K110,Egyéni!$L$3:$L$156,0) -> 41
D111: 0 | F111: 0 | H111: 0 | J111: =IF(I111<leány!$D$2,0,VLOOKUP(I111,hfut,3,TRUE)) -> 0 | K111: 0 | L111: =RANK(K111,Egyéni!$L$3:$L$156,0) -> 41
D112: 0 | F112: 0 | H112: 0 | J112: =IF(I112<leány!$D$2,0,VLOOKUP(I112,hfut,3,TRUE)) -> 0 | K112: 0 | L112: =RANK(K112,Egyéni!$L$3:$L$156,0) -> 41
D113: 0 | F113: 0 | H113: 0 | J113: =IF(I113<leány!$D$2,0,VLOOKUP(I113,hfut,3,TRUE)) -> 0 | K113: 0 | L113: =RANK(K113,Egyéni!$L$3:$L$156,0) -> 41
D114: 0 | F114: 0 | H114: 0 | J114: =IF(I114<leány!$D$2,0,VLOOKUP(I114,hfut,3,TRUE)) -> 0 | K114: 0 | L114: =RANK(K114,Egyéni!$L$3:$L$156,0) -> 41
M117: =RANK(M119,Csapat!$C$3:P120,0) -> 8
A118: Név | B118: Sz.év | C118: 60 m | E118: Távolugrás | G118: Klabdahajítás | I118: 600 m | K118: Összpont | L118: Helyezés
D119: =IF(C119<6.19,0,VLOOKUP(C119,rfut,5,TRUE)) -> 0 | F119: =IF(E119<1.79,0,VLOOKUP(E119,távol,4,TRUE)) -> 0 | H119: =IF(G119<4,0,VLOOKUP(G119,kisl,2,TRUE)) -> 0 | J119: =IF(I119<leány!$D$2,0,VLOOKUP(I119,hfut,3,TRUE)) -> 0 | K119: =SUM(D119,F119,H119,J119) -> 0 | L119: =RANK(K119,Egyéni!$L$3:$L$156,0) -> 41 | M119: =SUM(K119:K124)-MIN(K119:K124) -> 0
D120: 0 | F120: 0 | H120: 0 | J120: =IF(I120<leány!$D$2,0,VLOOKUP(I120,hfut,3,TRUE)) -> 0 | K120: 0 | L120: =RANK(K120,Egyéni!$L$3:$L$156,0) -> 41
D121: 0 | F121: 0 | H121: 0 | J121: =IF(I121<leány!$D$2,0,VLOOKUP(I121,hfut,3,TRUE)) -> 0 | K121: 0 | L121: =RANK(K121,Egyéni!$L$3:$L$156,0) -> 41
D122: 0 | F122: 0 | H122: 0 | J122: =IF(I122<leány!$D$2,0,VLOOKUP(I122,hfut,3,TRUE)) -> 0 | K122: 0 | L122: =RANK(K122,Egyéni!$L$3:$L$156,0) -> 41
D123: 0 | F123: 0 | H123: 0 | J123: =IF(I123<leány!$D$2,0,VLOOKUP(I123,hfut,3,TRUE)) -> 0 | K123: 0 | L123: =RANK(K123,Egyéni!$L$3:$L$156,0) -> 41
D124: 0 | F124: 0 | H124: 0 | J124: =IF(I124<leány!$D$2,0,VLOOKUP(I124,hfut,3,TRUE)) -> 0 | K124: 0 | L124: =RANK(K124,Egyéni!$L$3:$L$156,0) -> 41
M127: =RANK(M129,Csapat!$C$3:P130,0) -> 8
A128: Név | B128: Sz.év | C128: 60 m | E128: Távolugrás | G128: Klabdahajítás | I128: 600 m | K128: Összpont | L128: Helyezés
D129: =IF(C129<6.19,0,VLOOKUP(C129,rfut,5,TRUE)) -> 0 | F129: =IF(E129<1.79,0,VLOOKUP(E129,távol,4,TRUE)) -> 0 | H129: =IF(G129<4,0,VLOOKUP(G129,kisl,2,TRUE)) -> 0 | J129: =IF(I129<leány!$D$2,0,VLOOKUP(I129,hfut,3,TRUE)) -> 0 | K129: =SUM(D129,F129,H129,J129) -> 0 | L129: =RANK(K129,Egyéni!$L$3:$L$156,0) -> 41 | M129: =SUM(K129:K134)-MIN(K129:K134) -> 0
D130: 0 | F130: 0 | H130: 0 | J130: =IF(I130<leány!$D$2,0,VLOOKUP(I130,hfut,3,TRUE)) -> 0 | K130: 0 | L130: =RANK(K130,Egyéni!$L$3:$L$156,0) -> 41
D131: 0 | F131: 0 | H131: 0 | J131: =IF(I131<leány!$D$2,0,VLOOKUP(I131,hfut,3,TRUE)) -> 0 | K131: 0 | L131: =RANK(K131,Egyéni!$L$3:$L$156,0) -> 41
D132: 0 | F132: 0 | H132: 0 | J132: =IF(I132<leány!$D$2,0,VLOOKUP(I132,hfut,3,TRUE)) -> 0 | K132: 0 | L132: =RANK(K132,Egyéni!$L$3:$L$156,0) -> 41
D133: 0 | F133: 0 | H133: 0 | J133: =IF(I133<leány!$D$2,0,VLOOKUP(I133,hfut,3,TRUE)) -> 0 | K133: 0 | L133: =RANK(K133,Egyéni!$L$3:$L$156,0) -> 41
D134: 0 | F134: 0 | H134: 0 | J134: =IF(I134<leány!$D$2,0,VLOOKUP(I134,hfut,3,TRUE)) -> 0 | K134: 0 | L134: =RANK(K134,Egyéni!$L$3:$L$156,0) -> 41
M137: =RANK(M139,Csapat!$C$3:P140,0) -> 8
A138: Név | B138: Sz.év | C138: 60 m | E138: Távolugrás | G138: Klabdahajítás | I138: 600 m | K138: Összpont | L138: Helyezés
D139: =IF(C139<6.19,0,VLOOKUP(C139,rfut,5,TRUE)) -> 0 | F139: =IF(E139<1.79,0,VLOOKUP(E139,távol,4,TRUE)) -> 0 | H139: =IF(G139<4,0,VLOOKUP(G139,kisl,2,TRUE)) -> 0 | J139: =IF(I139<leány!$D$2,0,VLOOKUP(I139,hfut,3,TRUE)) -> 0 | K139: =SUM(D139,F139,H139,J139) -> 0 | L139: =RANK(K139,Egyéni!$L$3:$L$156,0) -> 41 | M139: =SUM(K139:K144)-MIN(K139:K144) -> 0
D140: 0 | F140: 0 | H140: 0 | J140: =IF(I140<leány!$D$2,0,VLOOKUP(I140,hfut,3,TRUE)) -> 0 | K140: 0 | L140: =RANK(K140,Egyéni!$L$3:$L$156,0) -> 41
D141: 0 | F141: 0 | H141: 0 | J141: =IF(I141<leány!$D$2,0,VLOOKUP(I141,hfut,3,TRUE)) -> 0 | K141: 0 | L141: =RANK(K141,Egyéni!$L$3:$L$156,0) -> 41
D142: 0 | F142: 0 | H142: 0 | J142: =IF(I142<leány!$D$2,0,VLOOKUP(I142,hfut,3,TRUE)) -> 0 | K142: 0 | L142: =RANK(K142,Egyéni!$L$3:$L$156,0) -> 41
D143: 0 | F143: 0 | H143: 0 | J143: =IF(I143<leány!$D$2,0,VLOOKUP(I143,hfut,3,TRUE)) -> 0 | K143: 0 | L143: =RANK(K143,Egyéni!$L$3:$L$156,0) -> 41
D144: 0 | F144: 0 | H144: 0 | J144: =IF(I144<leány!$D$2,0,VLOOKUP(I144,hfut,3,TRUE)) -> 0 | K144: 0 | L144: =RANK(K144,Egyéni!$L$3:$L$156,0) -> 41
M147: =RANK(M149,Csapat!$C$3:P150,0) -> 8
A148: Név | B148: Sz.év | C148: 60 m | E148: Távolugrás | G148: Klabdahajítás | I148: 600 m | K148: Összpont | L148: Helyezés
D149: =IF(C149<6.19,0,VLOOKUP(C149,rfut,5,TRUE)) -> 0 | F149: =IF(E149<1.79,0,VLOOKUP(E149,távol,4,TRUE)) -> 0 | H149: =IF(G149<4,0,VLOOKUP(G149,kisl,2,TRUE)) -> 0 | J149: =IF(I149<leány!$D$2,0,VLOOKUP(I149,hfut,3,TRUE)) -> 0 | K149: =SUM(D149,F149,H149,J149) -> 0 | L149: =RANK(K149,Egyéni!$L$3:$L$156,0) -> 41 | M149: =SUM(K149:K154)-MIN(K149:K154) -> 0
D150: 0 | F150: 0 | H150: 0 | J150: =IF(I150<leány!$D$2,0,VLOOKUP(I150,hfut,3,TRUE)) -> 0 | K150: 0 | L150: =RANK(K150,Egyéni!$L$3:$L$156,0) -> 41
D151: 0 | F151: 0 | H151: 0 | J151: =IF(I151<leány!$D$2,0,VLOOKUP(I151,hfut,3,TRUE)) -> 0 | K151: 0 | L151: =RANK(K151,Egyéni!$L$3:$L$156,0) -> 41
D152: 0 | F152: 0 | H152: 0 | J152: =IF(I152<leány!$D$2,0,VLOOKUP(I152,hfut,3,TRUE)) -> 0 | K152: 0 | L152: =RANK(K152,Egyéni!$L$3:$L$156,0) -> 41
D153: 0 | F153: 0 | H153: 0 | J153: =IF(I153<leány!$D$2,0,VLOOKUP(I153,hfut,3,TRUE)) -> 0 | K153: 0 | L153: =RANK(K153,Egyéni!$L$3:$L$156,0) -> 41
D154: 0 | F154: 0 | H154: 0 | J154: =IF(I154<leány!$D$2,0,VLOOKUP(I154,hfut,3,TRUE)) -> 0 | K154: 0 | L154: =RANK(K154,Egyéni!$L$3:$L$156,0) -> 41
M157: =RANK(M159,Csapat!$C$3:P160,0) -> 8
A158: Név | B158: Sz.év | C158: 60 m | E158: Távolugrás | G158: Klabdahajítás | I158: 600 m | K158: Összpont | L158: Helyezés
D159: =IF(C159<6.19,0,VLOOKUP(C159,rfut,5,TRUE)) -> 0 | F159: =IF(E159<1.79,0,VLOOKUP(E159,távol,4,TRUE)) -> 0 | H159: =IF(G159<4,0,VLOOKUP(G159,kisl,2,TRUE)) -> 0 | J159: =IF(I159<leány!$D$2,0,VLOOKUP(I159,hfut,3,TRUE)) -> 0 | K159: =SUM(D159,F159,H159,J159) -> 0 | L159: =RANK(K159,Egyéni!$L$3:$L$156,0) -> 41 | M159: =SUM(K159:K164)-MIN(K159:K164) -> 0
D160: 0 | F160: 0 | H160: 0 | J160: =IF(I160<leány!$D$2,0,VLOOKUP(I160,hfut,3,TRUE)) -> 0 | K160: 0 | L160: =RANK(K160,Egyéni!$L$3:$L$156,0) -> 41
D161: 0 | F161: 0 | H161: 0 | J161: =IF(I161<leány!$D$2,0,VLOOKUP(I161,hfut,3,TRUE)) -> 0 | K161: 0 | L161: =RANK(K161,Egyéni!$L$3:$L$156,0) -> 41
D162: 0 | F162: 0 | H162: 0 | J162: =IF(I162<leány!$D$2,0,VLOOKUP(I162,hfut,3,TRUE)) -> 0 | K162: 0 | L162: =RANK(K162,Egyéni!$L$3:$L$156,0) -> 41
D163: 0 | F163: 0 | H163: 0 | J163: =IF(I163<leány!$D$2,0,VLOOKUP(I163,hfut,3,TRUE)) -> 0 | K163: 0 | L163: =RANK(K163,Egyéni!$L$3:$L$156,0) -> 41
D164: 0 | F164: 0 | H164: 0 | J164: =IF(I164<leány!$D$2,0,VLOOKUP(I164,hfut,3,TRUE)) -> 0 | K164: 0 | L164: =RANK(K164,Egyéni!$L$3:$L$156,0) -> 41
M167: =RANK(M169,Csapat!$C$3:P170,0) -> 8
A168: Név | B168: Sz.év | C168: 60 m | E168: Távolugrás | G168: Klabdahajítás | I168: 600 m | K168: Összpont | L168: Helyezés
D169: =IF(C169<6.19,0,VLOOKUP(C169,rfut,5,TRUE)) -> 0 | F169: =IF(E169<1.79,0,VLOOKUP(E169,távol,4,TRUE)) -> 0 | H169: =IF(G169<4,0,VLOOKUP(G169,kisl,2,TRUE)) -> 0 | J169: =IF(I169<leány!$D$2,0,VLOOKUP(I169,hfut,3,TRUE)) -> 0 | K169: =SUM(D169,F169,H169,J169) -> 0 | L169: =RANK(K169,Egyéni!$L$3:$L$156,0) -> 41 | M169: =SUM(K169:K174)-MIN(K169:K174) -> 0
D170: 0 | F170: 0 | H170: 0 | J170: =IF(I170<leány!$D$2,0,VLOOKUP(I170,hfut,3,TRUE)) -> 0 | K170: 0 | L170: =RANK(K170,Egyéni!$L$3:$L$156,0) -> 41
D171: 0 | F171: 0 | H171: 0 | J171: =IF(I171<leány!$D$2,0,VLOOKUP(I171,hfut,3,TRUE)) -> 0 | K171: 0 | L171: =RANK(K171,Egyéni!$L$3:$L$156,0) -> 41
D172: 0 | F172: 0 | H172: 0 | J172: =IF(I172<leány!$D$2,0,VLOOKUP(I172,hfut,3,TRUE)) -> 0 | K172: 0 | L172: =RANK(K172,Egyéni!$L$3:$L$156,0) -> 41
D173: 0 | F173: 0 | H173: 0 | J173: =IF(I173<leány!$D$2,0,VLOOKUP(I173,hfut,3,TRUE)) -> 0 | K173: 0 | L173: =RANK(K173,Egyéni!$L$3:$L$156,0) -> 41
D174: 0 | F174: 0 | H174: 0 | J174: =IF(I174<leány!$D$2,0,VLOOKUP(I174,hfut,3,TRUE)) -> 0 | K174: 0 | L174: =RANK(K174,Egyéni!$L$3:$L$156,0) -> 41
M177: =RANK(M179,Csapat!$C$3:P180,0) -> 8
A178: Név | B178: Sz.év | C178: 60 m | E178: Távolugrás | G178: Klabdahajítás | I178: 600 m | K178: Összpont | L178: Helyezés
D179: =IF(C179<6.19,0,VLOOKUP(C179,rfut,5,TRUE)) -> 0 | F179: =IF(E179<1.79,0,VLOOKUP(E179,távol,4,TRUE)) -> 0 | H179: =IF(G179<4,0,VLOOKUP(G179,kisl,2,TRUE)) -> 0 | J179: =IF(I179<leány!$D$2,0,VLOOKUP(I179,hfut,3,TRUE)) -> 0 | K179: =SUM(D179,F179,H179,J179) -> 0 | L179: =RANK(K179,Egyéni!$L$3:$L$156,0) -> 41 | M179: =SUM(K179:K184)-MIN(K179:K184) -> 0
D180: 0 | F180: 0 | H180: 0 | J180: =IF(I180<leány!$D$2,0,VLOOKUP(I180,hfut,3,TRUE)) -> 0 | K180: 0 | L180: =RANK(K180,Egyéni!$L$3:$L$156,0) -> 41
D181: 0 | F181: 0 | H181: 0 | J181: =IF(I181<leány!$D$2,0,VLOOKUP(I181,hfut,3,TRUE)) -> 0 | K181: 0 | L181: =RANK(K181,Egyéni!$L$3:$L$156,0) -> 41
D182: 0 | F182: 0 | H182: 0 | J182: =IF(I182<leány!$D$2,0,VLOOKUP(I182,hfut,3,TRUE)) -> 0 | K182: 0 | L182: =RANK(K182,Egyéni!$L$3:$L$156,0) -> 41
D183: 0 | F183: 0 | H183: 0 | J183: =IF(I183<leány!$D$2,0,VLOOKUP(I183,hfut,3,TRUE)) -> 0 | K183: 0 | L183: =RANK(K183,Egyéni!$L$3:$L$156,0) -> 41
D184: 0 | F184: 0 | H184: 0 | J184: =IF(I184<leány!$D$2,0,VLOOKUP(I184,hfut,3,TRUE)) -> 0 | K184: 0 | L184: =RANK(K184,Egyéni!$L$3:$L$156,0) -> 41
M187: =RANK(M189,Csapat!$C$3:P190,0) -> 8
A188: Név | B188: Sz.év | C188: 60 m | E188: Távolugrás | G188: Klabdahajítás | I188: 600 m | K188: Összpont | L188: Helyezés
D189: =IF(C189<6.19,0,VLOOKUP(C189,rfut,5,TRUE)) -> 0 | F189: =IF(E189<1.79,0,VLOOKUP(E189,távol,4,TRUE)) -> 0 | H189: =IF(G189<4,0,VLOOKUP(G189,kisl,2,TRUE)) -> 0 | J189: =IF(I189<leány!$D$2,0,VLOOKUP(I189,hfut,3,TRUE)) -> 0 | K189: =SUM(D189,F189,H189,J189) -> 0 | L189: =RANK(K189,Egyéni!$L$3:$L$156,0) -> 41 | M189: =SUM(K189:K194)-MIN(K189:K194) -> 0
D190: 0 | F190: 0 | H190: 0 | J190: =IF(I190<leány!$D$2,0,VLOOKUP(I190,hfut,3,TRUE)) -> 0 | K190: 0 | L190: =RANK(K190,Egyéni!$L$3:$L$156,0) -> 41
D191: 0 | F191: 0 | H191: 0 | J191: =IF(I191<leány!$D$2,0,VLOOKUP(I191,hfut,3,TRUE)) -> 0 | K191: 0 | L191: =RANK(K191,Egyéni!$L$3:$L$156,0) -> 41
D192: 0 | F192: 0 | H192: 0 | J192: =IF(I192<leány!$D$2,0,VLOOKUP(I192,hfut,3,TRUE)) -> 0 | K192: 0 | L192: =RANK(K192,Egyéni!$L$3:$L$156,0) -> 41
D193: 0 | F193: 0 | H193: 0 | J193: =IF(I193<leány!$D$2,0,VLOOKUP(I193,hfut,3,TRUE)) -> 0 | K193: 0 | L193: =RANK(K193,Egyéni!$L$3:$L$156,0) -> 41
D194: 0 | F194: 0 | H194: 0 | J194: =IF(I194<leány!$D$2,0,VLOOKUP(I194,hfut,3,TRUE)) -> 0 | K194: 0 | L194: =RANK(K194,Egyéni!$L$3:$L$156,0) -> 41
M197: =RANK(M199,Csapat!$C$3:P200,0) -> 8
A198: Név | B198: Sz.év | C198: 60 m | E198: Távolugrás | G198: Klabdahajítás | I198: 600 m | K198: Összpont | L198: Helyezés
D199: =IF(C199<6.19,0,VLOOKUP(C199,rfut,5,TRUE)) -> 0 | F199: =IF(E199<1.79,0,VLOOKUP(E199,távol,4,TRUE)) -> 0 | H199: =IF(G199<4,0,VLOOKUP(G199,kisl,2,TRUE)) -> 0 | J199: =IF(I199<leány!$D$2,0,VLOOKUP(I199,hfut,3,TRUE)) -> 0 | K199: =SUM(D199,F199,H199,J199) -> 0 | L199: =RANK(K199,Egyéni!$L$3:$L$156,0) -> 41 | M199: =SUM(K199:K204)-MIN(K199:K204) -> 0
D200: 0 | F200: 0 | H200: 0 | J200: =IF(I200<leány!$D$2,0,VLOOKUP(I200,hfut,3,TRUE)) -> 0 | K200: 0 | L200: =RANK(K200,Egyéni!$L$3:$L$156,0) -> 41
D201: 0 | F201: 0 | H201: 0 | J201: =IF(I201<leány!$D$2,0,VLOOKUP(I201,hfut,3,TRUE)) -> 0 | K201: 0 | L201: =RANK(K201,Egyéni!$L$3:$L$156,0) -> 41
D202: 0 | F202: 0 | H202: 0 | J202: =IF(I202<leány!$D$2,0,VLOOKUP(I202,hfut,3,TRUE)) -> 0 | K202: 0 | L202: =RANK(K202,Egyéni!$L$3:$L$156,0) -> 41
D203: 0 | F203: 0 | H203: 0 | J203: =IF(I203<leány!$D$2,0,VLOOKUP(I203,hfut,3,TRUE)) -> 0 | K203: 0 | L203: =RANK(K203,Egyéni!$L$3:$L$156,0) -> 41
D204: 0 | F204: 0 | H204: 0 | J204: =IF(I204<leány!$D$2,0,VLOOKUP(I204,hfut,3,TRUE)) -> 0 | K204: 0 | L204: =RANK(K204,Egyéni!$L$3:$L$156,0) -> 41
M207: =RANK(M209,Csapat!$C$3:P210,0) -> 8
A208: Név | B208: Sz.év | C208: 60 m | E208: Távolugrás | G208: Klabdahajítás | I208: 600 m | K208: Összpont | L208: Helyezés
D209: =IF(C209<6.19,0,VLOOKUP(C209,rfut,5,TRUE)) -> 0 | F209: =IF(E209<1.79,0,VLOOKUP(E209,távol,4,TRUE)) -> 0 | H209: =IF(G209<4,0,VLOOKUP(G209,kisl,2,TRUE)) -> 0 | J209: =IF(I209<leány!$D$2,0,VLOOKUP(I209,hfut,3,TRUE)) -> 0 | K209: =SUM(D209,F209,H209,J209) -> 0 | L209: =RANK(K209,Egyéni!$L$3:$L$156,0) -> 41 | M209: =SUM(K209:K214)-MIN(K209:K214) -> 0
D210: 0 | F210: 0 | H210: 0 | J210: =IF(I210<leány!$D$2,0,VLOOKUP(I210,hfut,3,TRUE)) -> 0 | K210: 0 | L210: =RANK(K210,Egyéni!$L$3:$L$156,0) -> 41
D211: 0 | F211: 0 | H211: 0 | J211: =IF(I211<leány!$D$2,0,VLOOKUP(I211,hfut,3,TRUE)) -> 0 | K211: 0 | L211: =RANK(K211,Egyéni!$L$3:$L$156,0) -> 41
D212: 0 | F212: 0 | H212: 0 | J212: =IF(I212<leány!$D$2,0,VLOOKUP(I212,hfut,3,TRUE)) -> 0 | K212: 0 | L212: =RANK(K212,Egyéni!$L$3:$L$156,0) -> 41
D213: 0 | F213: 0 | H213: 0 | J213: =IF(I213<leány!$D$2,0,VLOOKUP(I213,hfut,3,TRUE)) -> 0 | K213: 0 | L213: =RANK(K213,Egyéni!$L$3:$L$156,0) -> 41
D214: 0 | F214: 0 | H214: 0 | J214: =IF(I214<leány!$D$2,0,VLOOKUP(I214,hfut,3,TRUE)) -> 0 | K214: 0 | L214: =RANK(K214,Egyéni!$L$3:$L$156,0) -> 41
M217: =RANK(M219,Csapat!$C$3:P220,0) -> 8
A218: Név | B218: Sz.év | C218: 60 m | E218: Távolugrás | G218: Klabdahajítás | I218: 600 m | K218: Összpont | L218: Helyezés
D219: =IF(C219<6.19,0,VLOOKUP(C219,rfut,5,TRUE)) -> 0 | F219: =IF(E219<1.79,0,VLOOKUP(E219,távol,4,TRUE)) -> 0 | H219: =IF(G219<4,0,VLOOKUP(G219,kisl,2,TRUE)) -> 0 | J219: =IF(I219<leány!$D$2,0,VLOOKUP(I219,hfut,3,TRUE)) -> 0 | K219: =SUM(D219,F219,H219,J219) -> 0 | L219: =RANK(K219,Egyéni!$L$3:$L$156,0) -> 41 | M219: =SUM(K219:K224)-MIN(K219:K224) -> 0
D220: 0 | F220: 0 | H220: 0 | J220: =IF(I220<leány!$D$2,0,VLOOKUP(I220,hfut,3,TRUE)) -> 0 | K220: 0 | L220: =RANK(K220,Egyéni!$L$3:$L$156,0) -> 41
D221: 0 | F221: 0 | H221: 0 | J221: =IF(I221<leány!$D$2,0,VLOOKUP(I221,hfut,3,TRUE)) -> 0 | K221: 0 | L221: =RANK(K221,Egyéni!$L$3:$L$156,0) -> 41
D222: 0 | F222: 0 | H222: 0 | J222: =IF(I222<leány!$D$2,0,VLOOKUP(I222,hfut,3,TRUE)) -> 0 | K222: 0 | L222: =RANK(K222,Egyéni!$L$3:$L$156,0) -> 41
D223: 0 | F223: 0 | H223: 0 | J223: =IF(I223<leány!$D$2,0,VLOOKUP(I223,hfut,3,TRUE)) -> 0 | K223: 0 | L223: =RANK(K223,Egyéni!$L$3:$L$156,0) -> 41
D224: 0 | F224: 0 | H224: 0 | J224: =IF(I224<leány!$D$2,0,VLOOKUP(I224,hfut,3,TRUE)) -> 0 | K224: 0 | L224: =RANK(K224,Egyéni!$L$3:$L$156,0) -> 41
M227: =RANK(M229,Csapat!$C$3:P230,0) -> 8
A228: Név | B228: Sz.év | C228: 60 m | E228: Távolugrás | G228: Klabdahajítás | I228: 600 m | K228: Összpont | L228: Helyezés
D229: =IF(C229<6.19,0,VLOOKUP(C229,rfut,5,TRUE)) -> 0 | F229: =IF(E229<1.79,0,VLOOKUP(E229,távol,4,TRUE)) -> 0 | H229: =IF(G229<4,0,VLOOKUP(G229,kisl,2,TRUE)) -> 0 | J229: =IF(I229<leány!$D$2,0,VLOOKUP(I229,hfut,3,TRUE)) -> 0 | K229: =SUM(D229,F229,H229,J229) -> 0 | L229: =RANK(K229,Egyéni!$L$3:$L$156,0) -> 41 | M229: =SUM(K229:K234)-MIN(K229:K234) -> 0
D230: 0 | F230: 0 | H230: 0 | J230: =IF(I230<leány!$D$2,0,VLOOKUP(I230,hfut,3,TRUE)) -> 0 | K230: 0 | L230: =RANK(K230,Egyéni!$L$3:$L$156,0) -> 41
D231: 0 | F231: 0 | H231: 0 | J231: =IF(I231<leány!$D$2,0,VLOOKUP(I231,hfut,3,TRUE)) -> 0 | K231: 0 | L231: =RANK(K231,Egyéni!$L$3:$L$156,0) -> 41
D232: 0 | F232: 0 | H232: 0 | J232: =IF(I232<leány!$D$2,0,VLOOKUP(I232,hfut,3,TRUE)) -> 0 | K232: 0 | L232: =RANK(K232,Egyéni!$L$3:$L$156,0) -> 41
D233: 0 | F233: 0 | H233: 0 | J233: =IF(I233<leány!$D$2,0,VLOOKUP(I233,hfut,3,TRUE)) -> 0 | K233: 0 | L233: =RANK(K233,Egyéni!$L$3:$L$156,0) -> 41
D234: 0 | F234: 0 | H234: 0 | J234: =IF(I234<leány!$D$2,0,VLOOKUP(I234,hfut,3,TRUE)) -> 0 | K234: 0 | L234: =RANK(K234,Egyéni!$L$3:$L$156,0) -> 41
M237: =RANK(M239,Csapat!$C$3:P240,0) -> 8
A238: Név | B238: Sz.év | C238: 60 m | E238: Távolugrás | G238: Klabdahajítás | I238: 600 m | K238: Összpont | L238: Helyezés
D239: =IF(C239<6.19,0,VLOOKUP(C239,rfut,5,TRUE)) -> 0 | F239: =IF(E239<1.79,0,VLOOKUP(E239,távol,4,TRUE)) -> 0 | H239: =IF(G239<4,0,VLOOKUP(G239,kisl,2,TRUE)) -> 0 | J239: =IF(I239<leány!$D$2,0,VLOOKUP(I239,hfut,3,TRUE)) -> 0 | K239: =SUM(D239,F239,H239,J239) -> 0 | L239: =RANK(K239,Egyéni!$L$3:$L$156,0) -> 41 | M239: =SUM(K239:K244)-MIN(K239:K244) -> 0
D240: 0 | F240: 0 | H240: 0 | J240: =IF(I240<leány!$D$2,0,VLOOKUP(I240,hfut,3,TRUE)) -> 0 | K240: 0 | L240: =RANK(K240,Egyéni!$L$3:$L$156,0) -> 41
D241: 0 | F241: 0 | H241: 0 | J241: =IF(I241<leány!$D$2,0,VLOOKUP(I241,hfut,3,TRUE)) -> 0 | K241: 0 | L241: =RANK(K241,Egyéni!$L$3:$L$156,0) -> 41
D242: 0 | F242: 0 | H242: 0 | J242: =IF(I242<leány!$D$2,0,VLOOKUP(I242,hfut,3,TRUE)) -> 0 | K242: 0 | L242: =RANK(K242,Egyéni!$L$3:$L$156,0) -> 41
D243: 0 | F243: 0 | H243: 0 | J243: =IF(I243<leány!$D$2,0,VLOOKUP(I243,hfut,3,TRUE)) -> 0 | K243: 0 | L243: =RANK(K243,Egyéni!$L$3:$L$156,0) -> 41
D244: 0 | F244: 0 | H244: 0 | J244: =IF(I244<leány!$D$2,0,VLOOKUP(I244,hfut,3,TRUE)) -> 0 | K244: 0 | L244: =RANK(K244,Egyéni!$L$3:$L$156,0) -> 41

Sheet Egyéni
A1: III. korcsoport LEÁNY EGYÉNI végeredmény ( Rendezés Ctrl + q )
A2: Ssz | B2: Név | C2: Szév | D2: 60 m | E2: p | F2: T | G2: p | H2: kisl | I2: p | J2: 600 m | K2: p | L2: Összp | N2: Iskola
A3: 1. | B3: =Be!A4 -> Sasvári Dorina | C3: =Be!B4 -> 2005 | D3: =Be!C4 -> 0 | E3: =Be!D4 -> 0 | F3: =Be!E4 -> 0 | G3: =Be!F4 -> 0 | H3: =Be!G4 -> 0 | I3: =Be!H4 -> 0 | J3: =Be!I4 -> 00:00:00 | K3: =Be!J4 -> 0 | L3: =Be!K4 -> 0 | N3: =Be!M4 -> Dunakeszi Radnóti Miklós Gimnázium
A4: 2. | B4: =Be!A5 -> 0 | C4: =Be!B5 -> 0 | D4: =Be!C5 -> 0 | E4: =Be!D5 -> 0 | F4: =Be!E5 -> 0 | G4: =Be!F5 -> 0 | H4: =Be!G5 -> 0 | I4: =Be!H5 -> 0 | J4: =Be!I5 -> 00:00:00 | K4: =Be!J5 -> 0 | L4: =Be!K5 -> 0 | N4: =Be!M5 -> 0
A5: 3. | B5: =Be!A6 -> 0 | C5: =Be!B6 -> 0 | D5: =Be!C6 -> 0 | E5: =Be!D6 -> 0 | F5: =Be!E6 -> 0 | G5: =Be!F6 -> 0 | H5: =Be!G6 -> 0 | I5: =Be!H6 -> 0 | J5: =Be!I6 -> 00:00:00 | K5: =Be!J6 -> 0 | L5: =Be!K6 -> 0 | N5: =Be!M6 -> 0
A6: 4. | B6: =Be!A7 -> 0 | C6: =Be!B7 -> 0 | D6: =Be!C7 -> 0 | E6: =Be!D7 -> 0 | F6: =Be!E7 -> 0 | G6: =Be!F7 -> 0 | H6: =Be!G7 -> 0 | I6: =Be!H7 -> 0 | J6: =Be!I7 -> 00:00:00 | K6: =Be!J7 -> 0 | L6: =Be!K7 -> 0 | N6: =Be!M7 -> 0
A7: 5. | B7: =Be!A8 -> 0 | C7: =Be!B8 -> 0 | D7: =Be!C8 -> 0 | E7: =Be!D8 -> 0 | F7: =Be!E8 -> 0 | G7: =Be!F8 -> 0 | H7: =Be!G8 -> 0 | I7: =Be!H8 -> 0 | J7: =Be!I8 -> 00:00:00 | K7: =Be!J8 -> 0 | L7: =Be!K8 -> 0 | N7: =Be!M8 -> 0
A8: 6. | B8: =Be!A9 -> 0 | C8: =Be!B9 -> 0 | D8: =Be!C9 -> 0 | E8: =Be!D9 -> 0 | F8: =Be!E9 -> 0 | G8: =Be!F9 -> 0 | H8: =Be!G9 -> 0 | I8: =Be!H9 -> 0 | J8: =Be!I9 -> 00:00:00 | K8: =Be!J9 -> 0 | L8: =Be!K9 -> 0 | N8: =Be!M9 -> 0
A9: 7. | B9: =Be!A10 -> 0 | C9: =Be!B10 -> 0 | D9: =Be!C10 -> 0 | E9: =Be!D10 -> 0 | F9: =Be!E10 -> 0 | G9: =Be!F10 -> 0 | H9: =Be!G10 -> 0 | I9: =Be!H10 -> 0 | J9: =Be!I10 -> 00:00:00 | K9: =Be!J10 -> 0 | L9: =Be!K10 -> 0 | N9: =Be!M10 -> 0
A10: 8. | B10: =Be!A11 -> 0 | C10: =Be!B11 -> 0 | D10: =Be!C11 -> 0 | E10: =Be!D11 -> 0 | F10: =Be!E11 -> 0 | G10: =Be!F11 -> 0 | H10: =Be!G11 -> 0 | I10: =Be!H11 -> 0 | J10: =Be!I11 -> 00:00:00 | K10: =Be!J11 -> 0 | L10: =Be!K11 -> 0 | N10: =Be!M11 -> 0
A11: 9. | B11: =Be!A12 -> 0 | C11: =Be!B12 -> 0 | D11: =Be!C12 -> 0 | E11: =Be!D12 -> 0 | F11: =Be!E12 -> 0 | G11: =Be!F12 -> 0 | H11: =Be!G12 -> 0 | I11: =Be!H12 -> 0 | J11: =Be!I12 -> 00:00:00 | K11: =Be!J12 -> 0 | L11: =Be!K12 -> 0 | N11: =Be!M12 -> 0
A12: 10. | B12: =Be!A13 -> 0 | C12: =Be!B13 -> 0 | D12: =Be!C13 -> 0 | E12: =Be!D13 -> 0 | F12: =Be!E13 -> 0 | G12: =Be!F13 -> 0 | H12: =Be!G13 -> 0 | I12: =Be!H13 -> 0 | J12: =Be!I13 -> 00:00:00 | K12: =Be!J13 -> 0 | L12: =Be!K13 -> 0 | N12: =Be!M13 -> 0
A13: 11. | B13: =Be!A14 -> 0 | C13: =Be!B14 -> 0 | D13: =Be!C14 -> 0 | E13: =Be!D14 -> 0 | F13: =Be!E14 -> 0 | G13: =Be!F14 -> 0 | H13: =Be!G14 -> 0 | I13: =Be!H14 -> 0 | J13: =Be!I14 -> 00:00:00 | K13: =Be!J14 -> 0 | L13: =Be!K14 -> 0 | N13: =Be!M14 -> 0
A14: 12. | B14: =Be!A15 -> 0 | C14: =Be!B15 -> 0 | D14: =Be!C15 -> 0 | E14: =Be!D15 -> 0 | F14: =Be!E15 -> 0 | G14: =Be!F15 -> 0 | H14: =Be!G15 -> 0 | I14: =Be!H15 -> 0 | J14: =Be!I15 -> 00:00:00 | K14: =Be!J15 -> 0 | L14: =Be!K15 -> 0 | N14: =Be!M15 -> 0
A15: 13. | B15: =Be!A16 -> 0 | C15: =Be!B16 -> 0 | D15: =Be!C16 -> 0 | E15: =Be!D16 -> 0 | F15: =Be!E16 -> 0 | G15: =Be!F16 -> 0 | H15: =Be!G16 -> 0 | I15: =Be!H16 -> 0 | J15: =Be!I16 -> 00:00:00 | K15: =Be!J16 -> 0 | L15: =Be!K16 -> 0 | N15: =Be!M16 -> 0
A16: 14. | B16: =Be!A17 -> 0 | C16: =Be!B17 -> 0 | D16: =Be!C17 -> 0 | E16: =Be!D17 -> 0 | F16: =Be!E17 -> 0 | G16: =Be!F17 -> 0 | H16: =Be!G17 -> 0 | I16: =Be!H17 -> 0 | J16: =Be!I17 -> 00:00:00 | K16: =Be!J17 -> 0 | L16: =Be!K17 -> 0 | N16: =Be!M17 -> 0
A17: 15. | B17: =Be!A18 -> 0 | C17: =Be!B18 -> 0 | D17: =Be!C18 -> 0 | E17: =Be!D18 -> 0 | F17: =Be!E18 -> 0 | G17: =Be!F18 -> 0 | H17: =Be!G18 -> 0 | I17: =Be!H18 -> 0 | J17: =Be!I18 -> 00:00:00 | K17: =Be!J18 -> 0 | L17: =Be!K18 -> 0 | N17: =Be!M18 -> 0
A18: 16. | B18: =Be!A19 -> 0 | C18: =Be!B19 -> 0 | D18: =Be!C19 -> 0 | E18: =Be!D19 -> 0 | F18: =Be!E19 -> 0 | G18: =Be!F19 -> 0 | H18: =Be!G19 -> 0 | I18: =Be!H19 -> 0 | J18: =Be!I19 -> 00:00:00 | K18: =Be!J19 -> 0 | L18: =Be!K19 -> 0 | N18: =Be!M19 -> 0
A19: 17. | B19: =Be!A20 -> 0 | C19: =Be!B20 -> 0 | D19: =Be!C20 -> 0 | E19: =Be!D20 -> 0 | F19: =Be!E20 -> 0 | G19: =Be!F20 -> 0 | H19: =Be!G20 -> 0 | I19: =Be!H20 -> 0 | J19: =Be!I20 -> 00:00:00 | K19: =Be!J20 -> 0 | L19: =Be!K20 -> 0 | N19: =Be!M20 -> 0
A20: 18. | B20: =Be!A21 -> 0 | C20: =Be!B21 -> 0 | D20: =Be!C21 -> 0 | E20: =Be!D21 -> 0 | F20: =Be!E21 -> 0 | G20: =Be!F21 -> 0 | H20: =Be!G21 -> 0 | I20: =Be!H21 -> 0 | J20: =Be!I21 -> 00:00:00 | K20: =Be!J21 -> 0 | L20: =Be!K21 -> 0 | N20: =Be!M21 -> 0
A21: 19. | B21: =Be!A22 -> 0 | C21: =Be!B22 -> 0 | D21: =Be!C22 -> 0 | E21: =Be!D22 -> 0 | F21: =Be!E22 -> 0 | G21: =Be!F22 -> 0 | H21: =Be!G22 -> 0 | I21: =Be!H22 -> 0 | J21: =Be!I22 -> 00:00:00 | K21: =Be!J22 -> 0 | L21: =Be!K22 -> 0 | N21: =Be!M22 -> 0
A22: 20. | B22: =Be!A23 -> 0 | C22: =Be!B23 -> 0 | D22: =Be!C23 -> 0 | E22: =Be!D23 -> 0 | F22: =Be!E23 -> 0 | G22: =Be!F23 -> 0 | H22: =Be!G23 -> 0 | I22: =Be!H23 -> 0 | J22: =Be!I23 -> 00:00:00 | K22: =Be!J23 -> 0 | L22: =Be!K23 -> 0 | N22: =Be!M23 -> 0
A23: 21. | B23: =Be!A24 -> 0 | C23: =Be!B24 -> 0 | D23: =Be!C24 -> 0 | E23: =Be!D24 -> 0 | F23: =Be!E24 -> 0 | G23: =Be!F24 -> 0 | H23: =Be!G24 -> 0 | I23: =Be!H24 -> 0 | J23: =Be!I24 -> 00:00:00 | K23: =Be!J24 -> 0 | L23: =Be!K24 -> 0 | N23: =Be!M24 -> 0
A24: 22. | B24: =Be!A25 -> 0 | C24: =Be!B25 -> 0 | D24: =Be!C25 -> 0 | E24: =Be!D25 -> 0 | F24: =Be!E25 -> 0 | G24: =Be!F25 -> 0 | H24: =Be!G25 -> 0 | I24: =Be!H25 -> 0 | J24: =Be!I25 -> 00:00:00 | K24: =Be!J25 -> 0 | L24: =Be!K25 -> 0 | N24: =Be!M25 -> 0
A25: 23. | B25: =Be!A29 -> Békefi Emese Dóra | C25: =Be!B29 -> 2006 | D25: =Be!C29 -> 9.57 | E25: =Be!D29 -> 158 | F25: =Be!E29 -> 3.56 | G25: =Be!F29 -> 98 | H25: =Be!G29 -> 24.3 | I25: =Be!H29 -> 75 | J25: =Be!I29 -> 00:02:15.580 | K25: =Be!J29 -> 116 | L25: =Be!K29 -> 447 | N25: =Be!A27 -> DUNAKESZI FAZEKAS MIHÁLY NÉMET NYELVOKTATÓ NEMZETISÉGI ÁLTALÁNOS ISKOLA
A26: 24. | B26: =Be!A30 -> Décsei Krisztina | C26: =Be!B30 -> 2006 | D26: =Be!C30 -> 9.82 | E26: =Be!D30 -> 146 | F26: =Be!E30 -> 4.15 | G26: =Be!F30 -> 136 | H26: =Be!G30 -> 39.5 | I26: =Be!H30 -> 138 | J26: =Be!I30 -> 00:02:03.660 | K26: =Be!J30 -> 156 | L26: =Be!K30 -> 576 | N26: =Be!A27 -> DUNAKESZI FAZEKAS MIHÁLY NÉMET NYELVOKTATÓ NEMZETISÉGI ÁLTALÁNOS ISKOLA
A27: 25. | B27: =Be!A31 -> Éles Zsófia | C27: =Be!B31 -> 2005 | D27: =Be!C31 -> 9.08 | E27: =Be!D31 -> 182 | F27: =Be!E31 -> 3.93 | G27: =Be!F31 -> 122 | H27: =Be!G31 -> 25.4 | I27: =Be!H31 -> 79 | J27: =Be!I31 -> 00:02:25.190 | K27: =Be!J31 -> 85 | L27: =Be!K31 -> 468 | N27: =Be!A27 -> DUNAKESZI FAZEKAS MIHÁLY NÉMET NYELVOKTATÓ NEMZETISÉGI ÁLTALÁNOS ISKOLA
A28: 26. | B28: =Be!A32 -> Gyuricza Laura | C28: =Be!B32 -> 2005 | D28: =Be!C32 -> 10.27 | E28: =Be!D32 -> 126 | F28: =Be!E32 -> 4.06 | G28: =Be!F32 -> 130 | H28: =Be!G32 -> 32.3 | I28: =Be!H32 -> 107 | J28: =Be!I32 -> 00:02:23.460 | K28: =Be!J32 -> 91 | L28: =Be!K32 -> 454 | N28: =Be!A27 -> DUNAKESZI FAZEKAS MIHÁLY NÉMET NYELVOKTATÓ NEMZETISÉGI ÁLTALÁNOS ISKOLA
A29: 27. | B29: =Be!A33 -> Gyurik Titanilla | C29: =Be!B33 -> 2005 | D29: =Be!C33 -> 10.69 | E29: =Be!D33 -> 108 | F29: =Be!E33 -> 3.21 | G29: =Be!F33 -> 78 | H29: =Be!G33 -> 20 | I29: =Be!H33 -> 58 | J29: =Be!I33 -> 00:02:18.450 | K29: =Be!J33 -> 106 | L29: =Be!K33 -> 350 | N29: =Be!A27 -> DUNAKESZI FAZEKAS MIHÁLY NÉMET NYELVOKTATÓ NEMZETISÉGI ÁLTALÁNOS ISKOLA
A30: 28. | B30: =Be!A34 -> Temesvári Tinetta Vivien | C30: =Be!B34 -> 2005 | D30: =Be!C34 -> 9.42 | E30: =Be!D34 -> 165 | F30: =Be!E34 -> 3.93 | G30: =Be!F34 -> 122 | H30: =Be!G34 -> 36.2 | I30: =Be!H34 -> 123 | J30: =Be!I34 -> 00:02:02.890 | K30: =Be!J34 -> 159 | L30: =Be!K34 -> 569 | N30: =Be!A27 -> DUNAKESZI FAZEKAS MIHÁLY NÉMET NYELVOKTATÓ NEMZETISÉGI ÁLTALÁNOS ISKOLA
A31: 29. | B31: =Be!A39 -> Erdész Anna | C31: =Be!B39 -> 2006 | D31: =Be!C39 -> 9.89 | E31: =Be!D39 -> 143 | F31: =Be!E39 -> 3.32 | G31: =Be!F39 -> 84 | H31: =Be!G39 -> 30.7 | I31: =Be!H39 -> 100 | J31: =Be!I39 -> 00:02:24.250 | K31: =Be!J39 -> 88 | L31: =Be!K39 -> 415 | N31: =Be!A37 -> DUNAKESZI SZENT ISTVÁN ÁLTALÁNOS ISKOLA
A32: 30. | B32: =Be!A40 -> Fülöp Hanna | C32: =Be!B40 -> 2006 | D32: =Be!C40 -> 10.22 | E32: =Be!D40 -> 129 | F32: =Be!E40 -> 3.23 | G32: =Be!F40 -> 79 | H32: =Be!G40 -> 28.8 | I32: =Be!H40 -> 92 | J32: =Be!I40 -> 00:02:22.940 | K32: =Be!J40 -> 92 | L32: =Be!K40 -> 392 | N32: =Be!A37 -> DUNAKESZI SZENT ISTVÁN ÁLTALÁNOS ISKOLA
A33: 31. | B33: =Be!A41 -> Gedeon Réka | C33: =Be!B41 -> 2005 | D33: =Be!C41 -> 9.77 | E33: =Be!D41 -> 148 | F33: =Be!E41 -> 3.58 | G33: =Be!F41 -> 99 | H33: =Be!G41 -> 28.8 | I33: =Be!H41 -> 92 | J33: =Be!I41 -> 00:02:28.230 | K33: =Be!J41 -> 76 | L33: =Be!K41 -> 415 | N33: =Be!A37 -> DUNAKESZI SZENT ISTVÁN ÁLTALÁNOS ISKOLA
A34: 32. | B34: =Be!A42 -> Avarkeszi Dóra Szilvia | C34: =Be!B42 -> 2006 | D34: =Be!C42 -> 10.26 | E34: =Be!D42 -> 127 | F34: =Be!E42 -> 3.8 | G34: =Be!F42 -> 113 | H34: =Be!G42 -> 19.7 | I34: =Be!H42 -> 56 | J34: =Be!I42 -> 00:01:59.620 | K34: =Be!J42 -> 171 | L34: =Be!K42 -> 467 | N34: =Be!A37 -> DUNAKESZI SZENT ISTVÁN ÁLTALÁNOS ISKOLA
A35: 33. | B35: =Be!A43 -> Király Liliom | C35: =Be!B43 -> 2005 | D35: =Be!C43 -> 9.67 | E35: =Be!D43 -> 153 | F35: =Be!E43 -> 4.03 | G35: =Be!F43 -> 128 | H35: =Be!G43 -> 29 | I35: =Be!H43 -> 93 | J35: =Be!I43 -> 00:02:07.890 | K35: =Be!J43 -> 142 | L35: =Be!K43 -> 516 | N35: =Be!A37 -> DUNAKESZI SZENT ISTVÁN ÁLTALÁNOS ISKOLA
A36: 34. | B36: =Be!A44 -> Sziráki Míra Enikő | C36: =Be!B44 -> 2006 | D36: =Be!C44 -> 10.47 | E36: =Be!D44 -> 118 | F36: =Be!E44 -> 3.05 | G36: =Be!F44 -> 68 | H36: =Be!G44 -> 25.5 | I36: =Be!H44 -> 79 | J36: =Be!I44 -> 00:02:33.410 | K36: =Be!J44 -> 60 | L36: =Be!K44 -> 325 | N36: =Be!A37 -> DUNAKESZI SZENT ISTVÁN ÁLTALÁNOS ISKOLA
A37: 35. | B37: =Be!A49 -> Erdős Kinga | C37: =Be!B49 -> 2006 | D37: =Be!C49 -> 10.14 | E37: =Be!D49 -> 132 | F37: =Be!E49 -> 4.02 | G37: =Be!F49 -> 127 | H37: =Be!G49 -> 24.4 | I37: =Be!H49 -> 75 | J37: =Be!I49 -> 00:02:19.820 | K37: =Be!J49 -> 102 | L37: =Be!K49 -> 436 | N37: =Be!A47 -> DUNAKESZI KŐRÖSI CSOMA SÁNDOR ÁLTALÁNOS ISKOLA
A38: 36. | B38: =Be!A50 -> Horváth Boglárka | C38: =Be!B50 -> 2006 | D38: =Be!C50 -> 9.92 | E38: =Be!D50 -> 142 | F38: =Be!E50 -> 4.05 | G38: =Be!F50 -> 129 | H38: =Be!G50 -> 36.2 | I38: =Be!H50 -> 123 | J38: =Be!I50 -> 00:02:16.530 | K38: =Be!J50 -> 113 | L38: =Be!K50 -> 507 | N38: =Be!A47 -> DUNAKESZI KŐRÖSI CSOMA SÁNDOR ÁLTALÁNOS ISKOLA
A39: 37. | B39: =Be!A51 -> Kapuvári Liliána | C39: =Be!B51 -> 2006 | D39: =Be!C51 -> 9.8 | E39: =Be!D51 -> 147 | F39: =Be!E51 -> 4.14 | G39: =Be!F51 -> 135 | H39: =Be!G51 -> 34.7 | I39: =Be!H51 -> 117 | J39: =Be!I51 -> 00:02:04.540 | K39: =Be!J51 -> 153 | L39: =Be!K51 -> 552 | N39: =Be!A47 -> DUNAKESZI KŐRÖSI CSOMA SÁNDOR ÁLTALÁNOS ISKOLA
A40: 38. | B40: =Be!A52 -> Őzse Dorka | C40: =Be!B52 -> 2005 | D40: =Be!C52 -> 9.42 | E40: =Be!D52 -> 165 | F40: =Be!E52 -> 4.32 | G40: =Be!F52 -> 147 | H40: =Be!G52 -> 29.4 | I40: =Be!H52 -> 95 | J40: =Be!I52 -> 00:02:13.570 | K40: =Be!J52 -> 123 | L40: =Be!K52 -> 530 | N40: =Be!A47 -> DUNAKESZI KŐRÖSI CSOMA SÁNDOR ÁLTALÁNOS ISKOLA
A41: 39. | B41: =Be!A53 -> Zarándi Dorottya Eszter | C41: =Be!B53 -> 2006 | D41: =Be!C53 -> 9.11 | E41: =Be!D53 -> 180 | F41: =Be!E53 -> 4.66 | G41: =Be!F53 -> 171 | H41: =Be!G53 -> 36.6 | I41: =Be!H53 -> 125 | J41: =Be!I53 -> 00:02:11.500 | K41: =Be!J53 -> 130 | L41: =Be!K53 -> 606 | N41: =Be!A47 -> DUNAKESZI KŐRÖSI CSOMA SÁNDOR ÁLTALÁNOS ISKOLA
A42: 40. | B42: =Be!A54 -> Zarándi Edina Réka | C42: =Be!B54 -> 2006 | D42: =Be!C54 -> 9.24 | E42: =Be!D54 -> 174 | F42: =Be!E54 -> 4.2 | G42: =Be!F54 -> 139 | H42: =Be!G54 -> 31.8 | I42: =Be!H54 -> 104 | J42: =Be!I54 -> 00:02:05.700 | K42: =Be!J54 -> 149 | L42: =Be!K54 -> 566 | N42: =Be!A47 -> DUNAKESZI KŐRÖSI CSOMA SÁNDOR ÁLTALÁNOS ISKOLA
A43: 41. | B43: =Be!A59 -> Víg Fanni | C43: =Be!B59 -> 2005 | D43: =Be!C59 -> 9.74 | E43: =Be!D59 -> 150 | F43: =Be!E59 -> 3.87 | G43: =Be!F59 -> 118 | H43: =Be!G59 -> 26 | I43: =Be!H59 -> 81 | J43: =Be!I59 -> 00:02:19.400 | K43: =Be!J59 -> 103 | L43: =Be!K59 -> 452 | N43: =Be!A57 -> DUNAKESZI RADNÓTI MIKLÓS GIMNÁZIUM
A44: 42. | B44: =Be!A60 -> Szilágyi Ágota | C44: =Be!B60 -> 2005 | D44: =Be!C60 -> 9.35 | E44: =Be!D60 -> 169 | F44: =Be!E60 -> 3.78 | G44: =Be!F60 -> 112 | H44: =Be!G60 -> 27.6 | I44: =Be!H60 -> 87 | J44: =Be!I60 -> 00:02:01.310 | K44: =Be!J60 -> 165 | L44: =Be!K60 -> 533 | N44: =Be!A57 -> DUNAKESZI RADNÓTI MIKLÓS GIMNÁZIUM
A45: 43. | B45: =Be!A61 -> Molnár Dóra | C45: =Be!B61 -> 2006 | D45: =Be!C61 -> 9.58 | E45: =Be!D61 -> 158 | F45: =Be!E61 -> 3.74 | G45: =Be!F61 -> 109 | H45: =Be!G61 -> 36.4 | I45: =Be!H61 -> 124 | J45: =Be!I61 -> 00:02:19.760 | K45: =Be!J61 -> 102 | L45: =Be!K61 -> 493 | N45: =Be!A57 -> DUNAKESZI RADNÓTI MIKLÓS GIMNÁZIUM
A46: 44. | B46: =Be!A62 -> Moni Csenge | C46: =Be!B62 -> 2006 | D46: =Be!C62 -> 10.1 | E46: =Be!D62 -> 134 | F46: =Be!E62 -> 3.9 | G46: =Be!F62 -> 120 | H46: =Be!G62 -> 30.1 | I46: =Be!H62 -> 97 | J46: =Be!I62 -> 00:02:18.860 | K46: =Be!J62 -> 105 | L46: =Be!K62 -> 456 | N46: =Be!A57 -> DUNAKESZI RADNÓTI MIKLÓS GIMNÁZIUM
A47: 45. | B47: =Be!A63 -> Sasvári Dorina | C47: =Be!B63 -> 2005 | D47: =Be!C63 -> 10.77 | E47: =Be!D63 -> 105 | F47: =Be!E63 -> 3.27 | G47: =Be!F63 -> 81 | H47: =Be!G63 -> 19.7 | I47: =Be!H63 -> 56 | J47: =Be!I63 -> 00:02:22.640 | K47: =Be!J63 -> 93 | L47: =Be!K63 -> 335 | N47: =Be!A57 -> DUNAKESZI RADNÓTI MIKLÓS GIMNÁZIUM
A48: 46. | B48: =Be!A64 -> Krúdy Hanna | C48: =Be!B64 -> 2006 | D48: =Be!C64 -> 10.76 | E48: =Be!D64 -> 105 | F48: =Be!E64 -> 3.16 | G48: =Be!F64 -> 75 | H48: =Be!G64 -> 26.2 | I48: =Be!H64 -> 82 | J48: =Be!I64 -> 00:02:35.500 | K48: =Be!J64 -> 54 | L48: =Be!K64 -> 316 | N48: =Be!A57 -> DUNAKESZI RADNÓTI MIKLÓS GIMNÁZIUM
A49: 47. | B49: =Be!A69 -> Bogáti Bianka | C49: =Be!B69 -> 2005 | D49: =Be!C69 -> 9.15 | E49: =Be!D69 -> 178 | F49: =Be!E69 -> 3.7 | G49: =Be!F69 -> 107 | H49: =Be!G69 -> 24.5 | I49: =Be!H69 -> 75 | J49: =Be!I69 -> 00:02:07.200 | K49: =Be!J69 -> 144 | L49: =Be!K69 -> 504 | N49: =Be!A67 -> DUNAKESZI BÁRDOS LAJOS ÁLTALÁNOS ISKOLA
A50: 48. | B50: =Be!A70 -> Tikász Emma | C50: =Be!B70 -> 2005 | D50: =Be!C70 -> 10.06 | E50: =Be!D70 -> 136 | F50: =Be!E70 -> 3.66 | G50: =Be!F70 -> 104 | H50: =Be!G70 -> 19.3 | I50: =Be!H70 -> 55 | J50: =Be!I70 -> 00:02:42.340 | K50: =Be!J70 -> 35 | L50: =Be!K70 -> 330 | N50: =Be!A67 -> DUNAKESZI BÁRDOS LAJOS ÁLTALÁNOS ISKOLA
A51: 49. | B51: =Be!A71 -> Volentics Anna | C51: =Be!B71 -> 2005 | D51: =Be!C71 -> 10.42 | E51: =Be!D71 -> 120 | F51: =Be!E71 -> 3.37 | G51: =Be!F71 -> 87 | H51: =Be!G71 -> 25.3 | I51: =Be!H71 -> 78 | J51: =Be!I71 -> 00:02:22.140 | K51: =Be!J71 -> 95 | L51: =Be!K71 -> 380 | N51: =Be!A67 -> DUNAKESZI BÁRDOS LAJOS ÁLTALÁNOS ISKOLA
A52: 50. | B52: =Be!A72 -> Agócs Lili | C52: =Be!B72 -> 2005 | D52: =Be!C72 -> 10.89 | E52: =Be!D72 -> 99 | F52: =Be!E72 -> 3.33 | G52: =Be!F72 -> 85 | H52: =Be!G72 -> 14.3 | I52: =Be!H72 -> 37 | J52: =Be!I72 -> 00:02:28.230 | K52: =Be!J72 -> 76 | L52: =Be!K72 -> 297 | N52: =Be!A67 -> DUNAKESZI BÁRDOS LAJOS ÁLTALÁNOS ISKOLA
A53: 51. | B53: =Be!A73 -> Bán Eszter | C53: =Be!B73 -> 2005 | D53: =Be!C73 -> 8.83 | E53: =Be!D73 -> 194 | F53: =Be!E73 -> 4.77 | G53: =Be!F73 -> 178 | H53: =Be!G73 -> 27.8 | I53: =Be!H73 -> 88 | J53: =Be!I73 -> 00:02:09.770 | K53: =Be!J73 -> 135 | L53: =Be!K73 -> 595 | N53: =Be!A67 -> DUNAKESZI BÁRDOS LAJOS ÁLTALÁNOS ISKOLA
A54: 52. | B54: =Be!A74 -> Dankó Míra | C54: =Be!B74 -> 2006 | D54: =Be!C74 -> 0 | E54: =Be!D74 -> 0 | F54: =Be!E74 -> 0 | G54: =Be!F74 -> 0 | H54: =Be!G74 -> 0 | I54: =Be!H74 -> 0 | J54: =Be!I74 -> 00:00:00 | K54: =Be!J74 -> 0 | L54: =Be!K74 -> 0 | N54: =Be!A67 -> DUNAKESZI BÁRDOS LAJOS ÁLTALÁNOS ISKOLA
A55: 53. | B55: =Be!A79 -> Füzi Dorina | C55: =Be!B79 -> 2006 | D55: =Be!C79 -> 10.25 | E55: =Be!D79 -> 127 | F55: =Be!E79 -> 3.56 | G55: =Be!F79 -> 98 | H55: =Be!G79 -> 27 | I55: =Be!H79 -> 85 | J55: =Be!I79 -> 00:02:26.310 | K55: =Be!J79 -> 82 | L55: =Be!K79 -> 392 | N55: =Be!A77 -> Gödi Németh László Általános Iskola és Alapfokú Művészeti Iskola
A56: 54. | B56: =Be!A80 -> Gulyás Csenge | C56: =Be!B80 -> 2006 | D56: =Be!C80 -> 11.33 | E56: =Be!D80 -> 82 | F56: =Be!E80 -> 3.36 | G56: =Be!F80 -> 87 | H56: =Be!G80 -> 30.9 | I56: =Be!H80 -> 100 | J56: =Be!I80 -> 00:02:29.910 | K56: =Be!J80 -> 71 | L56: =Be!K80 -> 340 | N56: =Be!A77 -> Gödi Németh László Általános Iskola és Alapfokú Művészeti Iskola
A57: 55. | B57: =Be!A81 -> Gyürky Renáta | C57: =Be!B81 -> 2006 | D57: =Be!C81 -> 10.41 | E57: =Be!D81 -> 120 | F57: =Be!E81 -> 3.06 | G57: =Be!F81 -> 69 | H57: =Be!G81 -> 27.4 | I57: =Be!H81 -> 87 | J57: =Be!I81 -> 00:02:21.910 | K57: =Be!J81 -> 95 | L57: =Be!K81 -> 371 | N57: =Be!A77 -> Gödi Németh László Általános Iskola és Alapfokú Művészeti Iskola
A58: 56. | B58: =Be!A82 -> Horváth Lilla Eszter | C58: =Be!B82 -> 2005 | D58: =Be!C82 -> 10 | E58: =Be!D82 -> 138 | F58: =Be!E82 -> 3.86 | G58: =Be!F82 -> 117 | H58: =Be!G82 -> 32.2 | I58: =Be!H82 -> 106 | J58: =Be!I82 -> 00:02:00.390 | K58: =Be!J82 -> 168 | L58: =Be!K82 -> 529 | N58: =Be!A77 -> Gödi Németh László Általános Iskola és Alapfokú Művészeti Iskola
A59: 57. | B59: =Be!A83 -> Kovács Jázmin | C59: =Be!B83 -> 2005 | D59: =Be!C83 -> 9.74 | E59: =Be!D83 -> 150 | F59: =Be!E83 -> 3.43 | G59: =Be!F83 -> 91 | H59: =Be!G83 -> 34.4 | I59: =Be!H83 -> 116 | J59: =Be!I83 -> 00:02:15.580 | K59: =Be!J83 -> 116 | L59: =Be!K83 -> 473 | N59: =Be!A77 -> Gödi Németh László Általános Iskola és Alapfokú Művészeti Iskola
A60: 58. | B60: =Be!A84 -> 0 | C60: =Be!B84 -> 0 | D60: =Be!C84 -> 0 | E60: =Be!D84 -> 0 | F60: =Be!E84 -> 0 | G60: =Be!F84 -> 0 | H60: =Be!G84 -> 0 | I60: =Be!H84 -> 0 | J60: =Be!I84 -> 00:00:00 | K60: =Be!J84 -> 0 | L60: =Be!K84 -> 0 | N60: =Be!A77 -> Gödi Németh László Általános Iskola és Alapfokú Művészeti Iskola
A61: 59. | B61: =Be!A89 -> Becsák Eszter | C61: =Be!B89 -> 2006 | D61: =Be!C89 -> 11.02 | E61: =Be!D89 -> 94 | F61: =Be!E89 -> 2.93 | G61: =Be!F89 -> 61 | H61: =Be!G89 -> 24.2 | I61: =Be!H89 -> 74 | J61: =Be!I89 -> 00:02:57.840 | K61: =Be!J89 -> 0 | L61: =Be!K89 -> 229 | N61: =Be!A87 -> Dunakeszi Széchenyi István Általános Iskola
A62: 60. | B62: =Be!A90 -> Biczó Barbara | C62: =Be!B90 -> 2005 | D62: =Be!C90 -> 10.02 | E62: =Be!D90 -> 137 | F62: =Be!E90 -> 3.71 | G62: =Be!F90 -> 108 | H62: =Be!G90 -> 22 | I62: =Be!H90 -> 66 | J62: =Be!I90 -> 00:02:24.680 | K62: =Be!J90 -> 87 | L62: =Be!K90 -> 398 | N62: =Be!A87 -> Dunakeszi Széchenyi István Általános Iskola
A63: 61. | B63: =Be!A91 -> Fézer Ramona | C63: =Be!B91 -> 2005 | D63: =Be!C91 -> 12.01 | E63: =Be!D91 -> 55 | F63: =Be!E91 -> 3.4 | G63: =Be!F91 -> 89 | H63: =Be!G91 -> 26.8 | I63: =Be!H91 -> 84 | J63: =Be!I91 -> 00:03:09.920 | K63: =Be!J91 -> 0 | L63: =Be!K91 -> 228 | N63: =Be!A87 -> Dunakeszi Széchenyi István Általános Iskola
A64: 62. | B64: =Be!A92 -> Horváth Nikolett Luca | C64: =Be!B92 -> 2005 | D64: =Be!C92 -> 11.56 | E64: =Be!D92 -> 73 | F64: =Be!E92 -> 3.29 | G64: =Be!F92 -> 82 | H64: =Be!G92 -> 19.9 | I64: =Be!H92 -> 57 | J64: =Be!I92 -> 00:02:46.300 | K64: =Be!J92 -> 24 | L64: =Be!K92 -> 236 | N64: =Be!A87 -> Dunakeszi Széchenyi István Általános Iskola
A65: 63. | B65: =Be!A93 -> Koppányi Katalin | C65: =Be!B93 -> 2005 | D65: =Be!C93 -> 10.56 | E65: =Be!D93 -> 114 | F65: =Be!E93 -> 3.36 | G65: =Be!F93 -> 87 | H65: =Be!G93 -> 19.9 | I65: =Be!H93 -> 57 | J65: =Be!I93 -> 00:02:34.300 | K65: =Be!J93 -> 58 | L65: =Be!K93 -> 316 | N65: =Be!A87 -> Dunakeszi Széchenyi István Általános Iskola
A66: 64. | B66: =Be!A94 -> Lévai-Jenet Viktória | C66: =Be!B94 -> 2005 | D66: =Be!C94 -> 10.19 | E66: =Be!D94 -> 130 | F66: =Be!E94 -> 3.71 | G66: =Be!F94 -> 108 | H66: =Be!G94 -> 25 | I66: =Be!H94 -> 77 | J66: =Be!I94 -> 00:02:56.370 | K66: =Be!J94 -> 0 | L66: =Be!K94 -> 315 | N66: =Be!A87 -> Dunakeszi Széchenyi István Általános Iskola
A67: 65. | B67: =Be!A99 -> 0 | C67: =Be!B99 -> 0 | D67: =Be!C99 -> 0 | E67: =Be!D99 -> 0 | F67: =Be!E99 -> 0 | G67: =Be!F99 -> 0 | H67: =Be!G99 -> 0 | I67: =Be!H99 -> 0 | J67: =Be!I99 -> 00:00:00 | K67: =Be!J99 -> 0 | L67: =Be!K99 -> 0 | N67: =Be!A97 -> 0
A68: 66. | B68: =Be!A100 -> 0 | C68: =Be!B100 -> 0 | D68: =Be!C100 -> 0 | E68: =Be!D100 -> 0 | F68: =Be!E100 -> 0 | G68: =Be!F100 -> 0 | H68: =Be!G100 -> 0 | I68: =Be!H100 -> 0 | J68: =Be!I100 -> 00:00:00 | K68: =Be!J100 -> 0 | L68: =Be!K100 -> 0 | N68: =Be!A97 -> 0
A69: 67. | B69: =Be!A101 -> 0 | C69: =Be!B101 -> 0 | D69: =Be!C101 -> 0 | E69: =Be!D101 -> 0 | F69: =Be!E101 -> 0 | G69: =Be!F101 -> 0 | H69: =Be!G101 -> 0 | I69: =Be!H101 -> 0 | J69: =Be!I101 -> 00:00:00 | K69: =Be!J101 -> 0 | L69: =Be!K101 -> 0 | N69: =Be!A97 -> 0
A70: 68. | B70: =Be!A102 -> 0 | C70: =Be!B102 -> 0 | D70: =Be!C102 -> 0 | E70: =Be!D102 -> 0 | F70: =Be!E102 -> 0 | G70: =Be!F102 -> 0 | H70: =Be!G102 -> 0 | I70: =Be!H102 -> 0 | J70: =Be!I102 -> 00:00:00 | K70: =Be!J102 -> 0 | L70: =Be!K102 -> 0 | N70: =Be!A97 -> 0
A71: 69. | B71: =Be!A103 -> 0 | C71: =Be!B103 -> 0 | D71: =Be!C103 -> 0 | E71: =Be!D103 -> 0 | F71: =Be!E103 -> 0 | G71: =Be!F103 -> 0 | H71: =Be!G103 -> 0 | I71: =Be!H103 -> 0 | J71: =Be!I103 -> 00:00:00 | K71: =Be!J103 -> 0 | L71: =Be!K103 -> 0 | N71: =Be!A97 -> 0
A72: 70. | B72: =Be!A104 -> 0 | C72: =Be!B104 -> 0 | D72: =Be!C104 -> 0 | E72: =Be!D104 -> 0 | F72: =Be!E104 -> 0 | G72: =Be!F104 -> 0 | H72: =Be!G104 -> 0 | I72: =Be!H104 -> 0 | J72: =Be!I104 -> 00:00:00 | K72: =Be!J104 -> 0 | L72: =Be!K104 -> 0 | N72: =Be!A97 -> 0
A73: 71. | B73: =Be!A109 -> 0 | C73: =Be!B109 -> 0 | D73: =Be!C109 -> 0 | E73: =Be!D109 -> 0 | F73: =Be!E109 -> 0 | G73: =Be!F109 -> 0 | H73: =Be!G109 -> 0 | I73: =Be!H109 -> 0 | J73: =Be!I109 -> 00:00:00 | K73: =Be!J109 -> 0 | L73: =Be!K109 -> 0 | N73: =Be!A107 -> 0
A74: 72. | B74: =Be!A110 -> 0 | C74: =Be!B110 -> 0 | D74: =Be!C110 -> 0 | E74: =Be!D110 -> 0 | F74: =Be!E110 -> 0 | G74: =Be!F110 -> 0 | H74: =Be!G110 -> 0 | I74: =Be!H110 -> 0 | J74: =Be!I110 -> 00:00:00 | K74: =Be!J110 -> 0 | L74: =Be!K110 -> 0 | N74: =Be!A107 -> 0
A75: 73. | B75: =Be!A111 -> 0 | C75: =Be!B111 -> 0 | D75: =Be!C111 -> 0 | E75: =Be!D111 -> 0 | F75: =Be!E111 -> 0 | G75: =Be!F111 -> 0 | H75: =Be!G111 -> 0 | I75: =Be!H111 -> 0 | J75: =Be!I111 -> 00:00:00 | K75: =Be!J111 -> 0 | L75: =Be!K111 -> 0 | N75: =Be!A107 -> 0
A76: 74. | B76: =Be!A112 -> 0 | C76: =Be!B112 -> 0 | D76: =Be!C112 -> 0 | E76: =Be!D112 -> 0 | F76: =Be!E112 -> 0 | G76: =Be!F112 -> 0 | H76: =Be!G112 -> 0 | I76: =Be!H112 -> 0 | J76: =Be!I112 -> 00:00:00 | K76: =Be!J112 -> 0 | L76: =Be!K112 -> 0 | N76: =Be!A107 -> 0
A77: 75. | B77: =Be!A113 -> 0 | C77: =Be!B113 -> 0 | D77: =Be!C113 -> 0 | E77: =Be!D113 -> 0 | F77: =Be!E113 -> 0 | G77: =Be!F113 -> 0 | H77: =Be!G113 -> 0 | I77: =Be!H113 -> 0 | J77: =Be!I113 -> 00:00:00 | K77: =Be!J113 -> 0 | L77: =Be!K113 -> 0 | N77: =Be!A107 -> 0
A78: 76. | B78: =Be!A114 -> 0 | C78: =Be!B114 -> 0 | D78: =Be!C114 -> 0 | E78: =Be!D114 -> 0 | F78: =Be!E114 -> 0 | G78: =Be!F114 -> 0 | H78: =Be!G114 -> 0 | I78: =Be!H114 -> 0 | J78: =Be!I114 -> 00:00:00 | K78: =Be!J114 -> 0 | L78: =Be!K114 -> 0 | N78: =Be!A107 -> 0
A79: 77. | B79: =Be!A119 -> 0 | C79: =Be!B119 -> 0 | D79: =Be!C119 -> 0 | E79: =Be!D119 -> 0 | F79: =Be!E119 -> 0 | G79: =Be!F119 -> 0 | H79: =Be!G119 -> 0 | I79: =Be!H119 -> 0 | J79: =Be!I119 -> 00:00:00 | K79: =Be!J119 -> 0 | L79: =Be!K119 -> 0 | N79: =Be!A117 -> 0
A80: 78. | B80: =Be!A120 -> 0 | C80: =Be!B120 -> 0 | D80: =Be!C120 -> 0 | E80: =Be!D120 -> 0 | F80: =Be!E120 -> 0 | G80: =Be!F120 -> 0 | H80: =Be!G120 -> 0 | I80: =Be!H120 -> 0 | J80: =Be!I120 -> 00:00:00 | K80: =Be!J120 -> 0 | L80: =Be!K120 -> 0 | N80: =Be!A117 -> 0
A81: 79. | B81: =Be!A121 -> 0 | C81: =Be!B121 -> 0 | D81: =Be!C121 -> 0 | E81: =Be!D121 -> 0 | F81: =Be!E121 -> 0 | G81: =Be!F121 -> 0 | H81: =Be!G121 -> 0 | I81: =Be!H121 -> 0 | J81: =Be!I121 -> 00:00:00 | K81: =Be!J121 -> 0 | L81: =Be!K121 -> 0 | N81: =Be!A117 -> 0
A82: 80. | B82: =Be!A122 -> 0 | C82: =Be!B122 -> 0 | D82: =Be!C122 -> 0 | E82: =Be!D122 -> 0 | F82: =Be!E122 -> 0 | G82: =Be!F122 -> 0 | H82: =Be!G122 -> 0 | I82: =Be!H122 -> 0 | J82: =Be!I122 -> 00:00:00 | K82: =Be!J122 -> 0 | L82: =Be!K122 -> 0 | N82: =Be!A117 -> 0
A83: 81. | B83: =Be!A123 -> 0 | C83: =Be!B123 -> 0 | D83: =Be!C123 -> 0 | E83: =Be!D123 -> 0 | F83: =Be!E123 -> 0 | G83: =Be!F123 -> 0 | H83: =Be!G123 -> 0 | I83: =Be!H123 -> 0 | J83: =Be!I123 -> 00:00:00 | K83: =Be!J123 -> 0 | L83: =Be!K123 -> 0 | N83: =Be!A117 -> 0
A84: 82. | B84: =Be!A124 -> 0 | C84: =Be!B124 -> 0 | D84: =Be!C124 -> 0 | E84: =Be!D124 -> 0 | F84: =Be!E124 -> 0 | G84: =Be!F124 -> 0 | H84: =Be!G124 -> 0 | I84: =Be!H124 -> 0 | J84: =Be!I124 -> 00:00:00 | K84: =Be!J124 -> 0 | L84: =Be!K124 -> 0 | N84: =Be!A117 -> 0
A85: 83. | B85: =Be!A129 -> 0 | C85: =Be!B129 -> 0 | D85: =Be!C129 -> 0 | E85: =Be!D129 -> 0 | F85: =Be!E129 -> 0 | G85: =Be!F129 -> 0 | H85: =Be!G129 -> 0 | I85: =Be!H129 -> 0 | J85: =Be!I129 -> 00:00:00 | K85: =Be!J129 -> 0 | L85: =Be!K129 -> 0 | N85: =Be!A127 -> 0
A86: 84. | B86: =Be!A130 -> 0 | C86: =Be!B130 -> 0 | D86: =Be!C130 -> 0 | E86: =Be!D130 -> 0 | F86: =Be!E130 -> 0 | G86: =Be!F130 -> 0 | H86: =Be!G130 -> 0 | I86: =Be!H130 -> 0 | J86: =Be!I130 -> 00:00:00 | K86: =Be!J130 -> 0 | L86: =Be!K130 -> 0 | N86: =Be!A127 -> 0
A87: 85. | B87: =Be!A131 -> 0 | C87: =Be!B131 -> 0 | D87: =Be!C131 -> 0 | E87: =Be!D131 -> 0 | F87: =Be!E131 -> 0 | G87: =Be!F131 -> 0 | H87: =Be!G131 -> 0 | I87: =Be!H131 -> 0 | J87: =Be!I131 -> 00:00:00 | K87: =Be!J131 -> 0 | L87: =Be!K131 -> 0 | N87: =Be!A127 -> 0
A88: 86. | B88: =Be!A132 -> 0 | C88: =Be!B132 -> 0 | D88: =Be!C132 -> 0 | E88: =Be!D132 -> 0 | F88: =Be!E132 -> 0 | G88: =Be!F132 -> 0 | H88: =Be!G132 -> 0 | I88: =Be!H132 -> 0 | J88: =Be!I132 -> 00:00:00 | K88: =Be!J132 -> 0 | L88: =Be!K132 -> 0 | N88: =Be!A127 -> 0
A89: 87. | B89: =Be!A133 -> 0 | C89: =Be!B133 -> 0 | D89: =Be!C133 -> 0 | E89: =Be!D133 -> 0 | F89: =Be!E133 -> 0 | G89: =Be!F133 -> 0 | H89: =Be!G133 -> 0 | I89: =Be!H133 -> 0 | J89: =Be!I133 -> 00:00:00 | K89: =Be!J133 -> 0 | L89: =Be!K133 -> 0 | N89: =Be!A127 -> 0
A90: 88. | B90: =Be!A134 -> 0 | C90: =Be!B134 -> 0 | D90: =Be!C134 -> 0 | E90: =Be!D134 -> 0 | F90: =Be!E134 -> 0 | G90: =Be!F134 -> 0 | H90: =Be!G134 -> 0 | I90: =Be!H134 -> 0 | J90: =Be!I134 -> 00:00:00 | K90: =Be!J134 -> 0 | L90: =Be!K134 -> 0 | N90: =Be!A127 -> 0
A91: 89. | B91: =Be!A139 -> 0 | C91: =Be!B139 -> 0 | D91: =Be!C139 -> 0 | E91: =Be!D139 -> 0 | F91: =Be!E139 -> 0 | G91: =Be!F139 -> 0 | H91: =Be!G139 -> 0 | I91: =Be!H139 -> 0 | J91: =Be!I139 -> 00:00:00 | K91: =Be!J139 -> 0 | L91: =Be!K139 -> 0 | N91: =Be!A137 -> 0
A92: 90. | B92: =Be!A140 -> 0 | C92: =Be!B140 -> 0 | D92: =Be!C140 -> 0 | E92: =Be!D140 -> 0 | F92: =Be!E140 -> 0 | G92: =Be!F140 -> 0 | H92: =Be!G140 -> 0 | I92: =Be!H140 -> 0 | J92: =Be!I140 -> 00:00:00 | K92: =Be!J140 -> 0 | L92: =Be!K140 -> 0 | N92: =Be!A137 -> 0
A93: 91. | B93: =Be!A141 -> 0 | C93: =Be!B141 -> 0 | D93: =Be!C141 -> 0 | E93: =Be!D141 -> 0 | F93: =Be!E141 -> 0 | G93: =Be!F141 -> 0 | H93: =Be!G141 -> 0 | I93: =Be!H141 -> 0 | J93: =Be!I141 -> 00:00:00 | K93: =Be!J141 -> 0 | L93: =Be!K141 -> 0 | N93: =Be!A137 -> 0
A94: 92. | B94: =Be!A142 -> 0 | C94: =Be!B142 -> 0 | D94: =Be!C142 -> 0 | E94: =Be!D142 -> 0 | F94: =Be!E142 -> 0 | G94: =Be!F142 -> 0 | H94: =Be!G142 -> 0 | I94: =Be!H142 -> 0 | J94: =Be!I142 -> 00:00:00 | K94: =Be!J142 -> 0 | L94: =Be!K142 -> 0 | N94: =Be!A137 -> 0
A95: 93. | B95: =Be!A143 -> 0 | C95: =Be!B143 -> 0 | D95: =Be!C143 -> 0 | E95: =Be!D143 -> 0 | F95: =Be!E143 -> 0 | G95: =Be!F143 -> 0 | H95: =Be!G143 -> 0 | I95: =Be!H143 -> 0 | J95: =Be!I143 -> 00:00:00 | K95: =Be!J143 -> 0 | L95: =Be!K143 -> 0 | N95: =Be!A137 -> 0
A96: 94. | B96: =Be!A144 -> 0 | C96: =Be!B144 -> 0 | D96: =Be!C144 -> 0 | E96: =Be!D144 -> 0 | F96: =Be!E144 -> 0 | G96: =Be!F144 -> 0 | H96: =Be!G144 -> 0 | I96: =Be!H144 -> 0 | J96: =Be!I144 -> 00:00:00 | K96: =Be!J144 -> 0 | L96: =Be!K144 -> 0 | N96: =Be!A137 -> 0
A97: 95. | B97: =Be!A149 -> 0 | C97: =Be!B149 -> 0 | D97: =Be!C149 -> 0 | E97: =Be!D149 -> 0 | F97: =Be!E149 -> 0 | G97: =Be!F149 -> 0 | H97: =Be!G149 -> 0 | I97: =Be!H149 -> 0 | J97: =Be!I149 -> 00:00:00 | K97: =Be!J149 -> 0 | L97: =Be!K149 -> 0 | N97: =Be!A147 -> 0
A98: 96. | B98: =Be!A150 -> 0 | C98: =Be!B150 -> 0 | D98: =Be!C150 -> 0 | E98: =Be!D150 -> 0 | F98: =Be!E150 -> 0 | G98: =Be!F150 -> 0 | H98: =Be!G150 -> 0 | I98: =Be!H150 -> 0 | J98: =Be!I150 -> 00:00:00 | K98: =Be!J150 -> 0 | L98: =Be!K150 -> 0 | N98: =Be!A147 -> 0
A99: 97. | B99: =Be!A151 -> 0 | C99: =Be!B151 -> 0 | D99: =Be!C151 -> 0 | E99: =Be!D151 -> 0 | F99: =Be!E151 -> 0 | G99: =Be!F151 -> 0 | H99: =Be!G151 -> 0 | I99: =Be!H151 -> 0 | J99: =Be!I151 -> 00:00:00 | K99: =Be!J151 -> 0 | L99: =Be!K151 -> 0 | N99: =Be!A147 -> 0
A100: 98. | B100: =Be!A152 -> 0 | C100: =Be!B152 -> 0 | D100: =Be!C152 -> 0 | E100: =Be!D152 -> 0 | F100: =Be!E152 -> 0 | G100: =Be!F152 -> 0 | H100: =Be!G152 -> 0 | I100: =Be!H152 -> 0 | J100: =Be!I152 -> 00:00:00 | K100: =Be!J152 -> 0 | L100: =Be!K152 -> 0 | N100: =Be!A147 -> 0
A101: 99. | B101: =Be!A153 -> 0 | C101: =Be!B153 -> 0 | D101: =Be!C153 -> 0 | E101: =Be!D153 -> 0 | F101: =Be!E153 -> 0 | G101: =Be!F153 -> 0 | H101: =Be!G153 -> 0 | I101: =Be!H153 -> 0 | J101: =Be!I153 -> 00:00:00 | K101: =Be!J153 -> 0 | L101: =Be!K153 -> 0 | N101: =Be!A147 -> 0
A102: 100. | B102: =Be!A154 -> 0 | C102: =Be!B154 -> 0 | D102: =Be!C154 -> 0 | E102: =Be!D154 -> 0 | F102: =Be!E154 -> 0 | G102: =Be!F154 -> 0 | H102: =Be!G154 -> 0 | I102: =Be!H154 -> 0 | J102: =Be!I154 -> 00:00:00 | K102: =Be!J154 -> 0 | L102: =Be!K154 -> 0 | N102: =Be!A147 -> 0
A103: 101. | B103: =Be!A159 -> 0 | C103: =Be!B159 -> 0 | D103: =Be!C159 -> 0 | E103: =Be!D159 -> 0 | F103: =Be!E159 -> 0 | G103: =Be!F159 -> 0 | H103: =Be!G159 -> 0 | I103: =Be!H159 -> 0 | J103: =Be!I159 -> 00:00:00 | K103: =Be!J159 -> 0 | L103: =Be!K159 -> 0 | N103: =Be!A157 -> 0
A104: 102. | B104: =Be!A160 -> 0 | C104: =Be!B160 -> 0 | D104: =Be!C160 -> 0 | E104: =Be!D160 -> 0 | F104: =Be!E160 -> 0 | G104: =Be!F160 -> 0 | H104: =Be!G160 -> 0 | I104: =Be!H160 -> 0 | J104: =Be!I160 -> 00:00:00 | K104: =Be!J160 -> 0 | L104: =Be!K160 -> 0 | N104: =Be!A157 -> 0
A105: 103. | B105: =Be!A161 -> 0 | C105: =Be!B161 -> 0 | D105: =Be!C161 -> 0 | E105: =Be!D161 -> 0 | F105: =Be!E161 -> 0 | G105: =Be!F161 -> 0 | H105: =Be!G161 -> 0 | I105: =Be!H161 -> 0 | J105: =Be!I161 -> 00:00:00 | K105: =Be!J161 -> 0 | L105: =Be!K161 -> 0 | N105: =Be!A157 -> 0
A106: 104. | B106: =Be!A162 -> 0 | C106: =Be!B162 -> 0 | D106: =Be!C162 -> 0 | E106: =Be!D162 -> 0 | F106: =Be!E162 -> 0 | G106: =Be!F162 -> 0 | H106: =Be!G162 -> 0 | I106: =Be!H162 -> 0 | J106: =Be!I162 -> 00:00:00 | K106: =Be!J162 -> 0 | L106: =Be!K162 -> 0 | N106: =Be!A157 -> 0
A107: 105. | B107: =Be!A163 -> 0 | C107: =Be!B163 -> 0 | D107: =Be!C163 -> 0 | E107: =Be!D163 -> 0 | F107: =Be!E163 -> 0 | G107: =Be!F163 -> 0 | H107: =Be!G163 -> 0 | I107: =Be!H163 -> 0 | J107: =Be!I163 -> 00:00:00 | K107: =Be!J163 -> 0 | L107: =Be!K163 -> 0 | N107: =Be!A157 -> 0
A108: 106. | B108: =Be!A164 -> 0 | C108: =Be!B164 -> 0 | D108: =Be!C164 -> 0 | E108: =Be!D164 -> 0 | F108: =Be!E164 -> 0 | G108: =Be!F164 -> 0 | H108: =Be!G164 -> 0 | I108: =Be!H164 -> 0 | J108: =Be!I164 -> 00:00:00 | K108: =Be!J164 -> 0 | L108: =Be!K164 -> 0 | N108: =Be!A157 -> 0
A109: 107. | B109: =Be!A169 -> 0 | C109: =Be!B169 -> 0 | D109: =Be!C169 -> 0 | E109: =Be!D169 -> 0 | F109: =Be!E169 -> 0 | G109: =Be!F169 -> 0 | H109: =Be!G169 -> 0 | I109: =Be!H169 -> 0 | J109: =Be!I169 -> 00:00:00 | K109: =Be!J169 -> 0 | L109: =Be!K169 -> 0 | N109: =Be!A167 -> 0
A110: 108. | B110: =Be!A170 -> 0 | C110: =Be!B170 -> 0 | D110: =Be!C170 -> 0 | E110: =Be!D170 -> 0 | F110: =Be!E170 -> 0 | G110: =Be!F170 -> 0 | H110: =Be!G170 -> 0 | I110: =Be!H170 -> 0 | J110: =Be!I170 -> 00:00:00 | K110: =Be!J170 -> 0 | L110: =Be!K170 -> 0 | N110: =Be!A167 -> 0
A111: 109. | B111: =Be!A171 -> 0 | C111: =Be!B171 -> 0 | D111: =Be!C171 -> 0 | E111: =Be!D171 -> 0 | F111: =Be!E171 -> 0 | G111: =Be!F171 -> 0 | H111: =Be!G171 -> 0 | I111: =Be!H171 -> 0 | J111: =Be!I171 -> 00:00:00 | K111: =Be!J171 -> 0 | L111: =Be!K171 -> 0 | N111: =Be!A167 -> 0
A112: 110. | B112: =Be!A172 -> 0 | C112: =Be!B172 -> 0 | D112: =Be!C172 -> 0 | E112: =Be!D172 -> 0 | F112: =Be!E172 -> 0 | G112: =Be!F172 -> 0 | H112: =Be!G172 -> 0 | I112: =Be!H172 -> 0 | J112: =Be!I172 -> 00:00:00 | K112: =Be!J172 -> 0 | L112: =Be!K172 -> 0 | N112: =Be!A167 -> 0
A113: 111. | B113: =Be!A173 -> 0 | C113: =Be!B173 -> 0 | D113: =Be!C173 -> 0 | E113: =Be!D173 -> 0 | F113: =Be!E173 -> 0 | G113: =Be!F173 -> 0 | H113: =Be!G173 -> 0 | I113: =Be!H173 -> 0 | J113: =Be!I173 -> 00:00:00 | K113: =Be!J173 -> 0 | L113: =Be!K173 -> 0 | N113: =Be!A167 -> 0
A114: 112. | B114: =Be!A174 -> 0 | C114: =Be!B174 -> 0 | D114: =Be!C174 -> 0 | E114: =Be!D174 -> 0 | F114: =Be!E174 -> 0 | G114: =Be!F174 -> 0 | H114: =Be!G174 -> 0 | I114: =Be!H174 -> 0 | J114: =Be!I174 -> 00:00:00 | K114: =Be!J174 -> 0 | L114: =Be!K174 -> 0 | N114: =Be!A167 -> 0
A115: 113. | B115: =Be!A179 -> 0 | C115: =Be!B179 -> 0 | D115: =Be!C179 -> 0 | E115: =Be!D179 -> 0 | F115: =Be!E179 -> 0 | G115: =Be!F179 -> 0 | H115: =Be!G179 -> 0 | I115: =Be!H179 -> 0 | J115: =Be!I179 -> 00:00:00 | K115: =Be!J179 -> 0 | L115: =Be!K179 -> 0 | N115: =Be!A177 -> 0
A116: 114. | B116: =Be!A180 -> 0 | C116: =Be!B180 -> 0 | D116: =Be!C180 -> 0 | E116: =Be!D180 -> 0 | F116: =Be!E180 -> 0 | G116: =Be!F180 -> 0 | H116: =Be!G180 -> 0 | I116: =Be!H180 -> 0 | J116: =Be!I180 -> 00:00:00 | K116: =Be!J180 -> 0 | L116: =Be!K180 -> 0 | N116: =Be!A177 -> 0
A117: 115. | B117: =Be!A181 -> 0 | C117: =Be!B181 -> 0 | D117: =Be!C181 -> 0 | E117: =Be!D181 -> 0 | F117: =Be!E181 -> 0 | G117: =Be!F181 -> 0 | H117: =Be!G181 -> 0 | I117: =Be!H181 -> 0 | J117: =Be!I181 -> 00:00:00 | K117: =Be!J181 -> 0 | L117: =Be!K181 -> 0 | N117: =Be!A177 -> 0
A118: 116. | B118: =Be!A182 -> 0 | C118: =Be!B182 -> 0 | D118: =Be!C182 -> 0 | E118: =Be!D182 -> 0 | F118: =Be!E182 -> 0 | G118: =Be!F182 -> 0 | H118: =Be!G182 -> 0 | I118: =Be!H182 -> 0 | J118: =Be!I182 -> 00:00:00 | K118: =Be!J182 -> 0 | L118: =Be!K182 -> 0 | N118: =Be!A177 -> 0
A119: 117. | B119: =Be!A183 -> 0 | C119: =Be!B183 -> 0 | D119: =Be!C183 -> 0 | E119: =Be!D183 -> 0 | F119: =Be!E183 -> 0 | G119: =Be!F183 -> 0 | H119: =Be!G183 -> 0 | I119: =Be!H183 -> 0 | J119: =Be!I183 -> 00:00:00 | K119: =Be!J183 -> 0 | L119: =Be!K183 -> 0 | N119: =Be!A177 -> 0
A120: 118. | B120: =Be!A184 -> 0 | C120: =Be!B184 -> 0 | D120: =Be!C184 -> 0 | E120: =Be!D184 -> 0 | F120: =Be!E184 -> 0 | G120: =Be!F184 -> 0 | H120: =Be!G184 -> 0 | I120: =Be!H184 -> 0 | J120: =Be!I184 -> 00:00:00 | K120: =Be!J184 -> 0 | L120: =Be!K184 -> 0 | N120: =Be!A177 -> 0
A121: 119. | B121: =Be!A189 -> 0 | C121: =Be!B189 -> 0 | D121: =Be!C189 -> 0 | E121: =Be!D189 -> 0 | F121: =Be!E189 -> 0 | G121: =Be!F189 -> 0 | H121: =Be!G189 -> 0 | I121: =Be!H189 -> 0 | J121: =Be!I189 -> 00:00:00 | K121: =Be!J189 -> 0 | L121: =Be!K189 -> 0 | N121: =Be!A187 -> 0
A122: 120. | B122: =Be!A190 -> 0 | C122: =Be!B190 -> 0 | D122: =Be!C190 -> 0 | E122: =Be!D190 -> 0 | F122: =Be!E190 -> 0 | G122: =Be!F190 -> 0 | H122: =Be!G190 -> 0 | I122: =Be!H190 -> 0 | J122: =Be!I190 -> 00:00:00 | K122: =Be!J190 -> 0 | L122: =Be!K190 -> 0 | N122: =Be!A187 -> 0
A123: 121. | B123: =Be!A191 -> 0 | C123: =Be!B191 -> 0 | D123: =Be!C191 -> 0 | E123: =Be!D191 -> 0 | F123: =Be!E191 -> 0 | G123: =Be!F191 -> 0 | H123: =Be!G191 -> 0 | I123: =Be!H191 -> 0 | J123: =Be!I191 -> 00:00:00 | K123: =Be!J191 -> 0 | L123: =Be!K191 -> 0 | N123: =Be!A187 -> 0
A124: 122. | B124: =Be!A192 -> 0 | C124: =Be!B192 -> 0 | D124: =Be!C192 -> 0 | E124: =Be!D192 -> 0 | F124: =Be!E192 -> 0 | G124: =Be!F192 -> 0 | H124: =Be!G192 -> 0 | I124: =Be!H192 -> 0 | J124: =Be!I192 -> 00:00:00 | K124: =Be!J192 -> 0 | L124: =Be!K192 -> 0 | N124: =Be!A187 -> 0
A125: 123. | B125: =Be!A193 -> 0 | C125: =Be!B193 -> 0 | D125: =Be!C193 -> 0 | E125: =Be!D193 -> 0 | F125: =Be!E193 -> 0 | G125: =Be!F193 -> 0 | H125: =Be!G193 -> 0 | I125: =Be!H193 -> 0 | J125: =Be!I193 -> 00:00:00 | K125: =Be!J193 -> 0 | L125: =Be!K193 -> 0 | N125: =Be!A187 -> 0
A126: 124. | B126: =Be!A194 -> 0 | C126: =Be!B194 -> 0 | D126: =Be!C194 -> 0 | E126: =Be!D194 -> 0 | F126: =Be!E194 -> 0 | G126: =Be!F194 -> 0 | H126: =Be!G194 -> 0 | I126: =Be!H194 -> 0 | J126: =Be!I194 -> 00:00:00 | K126: =Be!J194 -> 0 | L126: =Be!K194 -> 0 | N126: =Be!A187 -> 0
A127: 125. | B127: =Be!A199 -> 0 | C127: =Be!B199 -> 0 | D127: =Be!C199 -> 0 | E127: =Be!D199 -> 0 | F127: =Be!E199 -> 0 | G127: =Be!F199 -> 0 | H127: =Be!G199 -> 0 | I127: =Be!H199 -> 0 | J127: =Be!I199 -> 00:00:00 | K127: =Be!J199 -> 0 | L127: =Be!K199 -> 0 | N127: =Be!A197 -> 0
A128: 126. | B128: =Be!A200 -> 0 | C128: =Be!B200 -> 0 | D128: =Be!C200 -> 0 | E128: =Be!D200 -> 0 | F128: =Be!E200 -> 0 | G128: =Be!F200 -> 0 | H128: =Be!G200 -> 0 | I128: =Be!H200 -> 0 | J128: =Be!I200 -> 00:00:00 | K128: =Be!J200 -> 0 | L128: =Be!K200 -> 0 | N128: =Be!A197 -> 0
A129: 127. | B129: =Be!A201 -> 0 | C129: =Be!B201 -> 0 | D129: =Be!C201 -> 0 | E129: =Be!D201 -> 0 | F129: =Be!E201 -> 0 | G129: =Be!F201 -> 0 | H129: =Be!G201 -> 0 | I129: =Be!H201 -> 0 | J129: =Be!I201 -> 00:00:00 | K129: =Be!J201 -> 0 | L129: =Be!K201 -> 0 | N129: =Be!A197 -> 0
A130: 128. | B130: =Be!A202 -> 0 | C130: =Be!B202 -> 0 | D130: =Be!C202 -> 0 | E130: =Be!D202 -> 0 | F130: =Be!E202 -> 0 | G130: =Be!F202 -> 0 | H130: =Be!G202 -> 0 | I130: =Be!H202 -> 0 | J130: =Be!I202 -> 00:00:00 | K130: =Be!J202 -> 0 | L130: =Be!K202 -> 0 | N130: =Be!A197 -> 0
A131: 129. | B131: =Be!A203 -> 0 | C131: =Be!B203 -> 0 | D131: =Be!C203 -> 0 | E131: =Be!D203 -> 0 | F131: =Be!E203 -> 0 | G131: =Be!F203 -> 0 | H131: =Be!G203 -> 0 | I131: =Be!H203 -> 0 | J131: =Be!I203 -> 00:00:00 | K131: =Be!J203 -> 0 | L131: =Be!K203 -> 0 | N131: =Be!A197 -> 0
A132: 130. | B132: =Be!A204 -> 0 | C132: =Be!B204 -> 0 | D132: =Be!C204 -> 0 | E132: =Be!D204 -> 0 | F132: =Be!E204 -> 0 | G132: =Be!F204 -> 0 | H132: =Be!G204 -> 0 | I132: =Be!H204 -> 0 | J132: =Be!I204 -> 00:00:00 | K132: =Be!J204 -> 0 | L132: =Be!K204 -> 0 | N132: =Be!A197 -> 0
A133: 131. | B133: =Be!A209 -> 0 | C133: =Be!B209 -> 0 | D133: =Be!C209 -> 0 | E133: =Be!D209 -> 0 | F133: =Be!E209 -> 0 | G133: =Be!F209 -> 0 | H133: =Be!G209 -> 0 | I133: =Be!H209 -> 0 | J133: =Be!I209 -> 00:00:00 | K133: =Be!J209 -> 0 | L133: =Be!K209 -> 0 | N133: =Be!A207 -> 0
A134: 132. | B134: =Be!A210 -> 0 | C134: =Be!B210 -> 0 | D134: =Be!C210 -> 0 | E134: =Be!D210 -> 0 | F134: =Be!E210 -> 0 | G134: =Be!F210 -> 0 | H134: =Be!G210 -> 0 | I134: =Be!H210 -> 0 | J134: =Be!I210 -> 00:00:00 | K134: =Be!J210 -> 0 | L134: =Be!K210 -> 0 | N134: =Be!A207 -> 0
A135: 133. | B135: =Be!A211 -> 0 | C135: =Be!B211 -> 0 | D135: =Be!C211 -> 0 | E135: =Be!D211 -> 0 | F135: =Be!E211 -> 0 | G135: =Be!F211 -> 0 | H135: =Be!G211 -> 0 | I135: =Be!H211 -> 0 | J135: =Be!I211 -> 00:00:00 | K135: =Be!J211 -> 0 | L135: =Be!K211 -> 0 | N135: =Be!A207 -> 0
A136: 134. | B136: =Be!A212 -> 0 | C136: =Be!B212 -> 0 | D136: =Be!C212 -> 0 | E136: =Be!D212 -> 0 | F136: =Be!E212 -> 0 | G136: =Be!F212 -> 0 | H136: =Be!G212 -> 0 | I136: =Be!H212 -> 0 | J136: =Be!I212 -> 00:00:00 | K136: =Be!J212 -> 0 | L136: =Be!K212 -> 0 | N136: =Be!A207 -> 0
A137: 135. | B137: =Be!A213 -> 0 | C137: =Be!B213 -> 0 | D137: =Be!C213 -> 0 | E137: =Be!D213 -> 0 | F137: =Be!E213 -> 0 | G137: =Be!F213 -> 0 | H137: =Be!G213 -> 0 | I137: =Be!H213 -> 0 | J137: =Be!I213 -> 00:00:00 | K137: =Be!J213 -> 0 | L137: =Be!K213 -> 0 | N137: =Be!A207 -> 0
A138: 136. | B138: =Be!A214 -> 0 | C138: =Be!B214 -> 0 | D138: =Be!C214 -> 0 | E138: =Be!D214 -> 0 | F138: =Be!E214 -> 0 | G138: =Be!F214 -> 0 | H138: =Be!G214 -> 0 | I138: =Be!H214 -> 0 | J138: =Be!I214 -> 00:00:00 | K138: =Be!J214 -> 0 | L138: =Be!K214 -> 0 | N138: =Be!A207 -> 0
A139: 137. | B139: =Be!A219 -> 0 | C139: =Be!B219 -> 0 | D139: =Be!C219 -> 0 | E139: =Be!D219 -> 0 | F139: =Be!E219 -> 0 | G139: =Be!F219 -> 0 | H139: =Be!G219 -> 0 | I139: =Be!H219 -> 0 | J139: =Be!I219 -> 00:00:00 | K139: =Be!J219 -> 0 | L139: =Be!K219 -> 0 | N139: =Be!A217 -> 0
A140: 138. | B140: =Be!A220 -> 0 | C140: =Be!B220 -> 0 | D140: =Be!C220 -> 0 | E140: =Be!D220 -> 0 | F140: =Be!E220 -> 0 | G140: =Be!F220 -> 0 | H140: =Be!G220 -> 0 | I140: =Be!H220 -> 0 | J140: =Be!I220 -> 00:00:00 | K140: =Be!J220 -> 0 | L140: =Be!K220 -> 0 | N140: =Be!A217 -> 0
A141: 139. | B141: =Be!A221 -> 0 | C141: =Be!B221 -> 0 | D141: =Be!C221 -> 0 | E141: =Be!D221 -> 0 | F141: =Be!E221 -> 0 | G141: =Be!F221 -> 0 | H141: =Be!G221 -> 0 | I141: =Be!H221 -> 0 | J141: =Be!I221 -> 00:00:00 | K141: =Be!J221 -> 0 | L141: =Be!K221 -> 0 | N141: =Be!A217 -> 0
A142: 140. | B142: =Be!A222 -> 0 | C142: =Be!B222 -> 0 | D142: =Be!C222 -> 0 | E142: =Be!D222 -> 0 | F142: =Be!E222 -> 0 | G142: =Be!F222 -> 0 | H142: =Be!G222 -> 0 | I142: =Be!H222 -> 0 | J142: =Be!I222 -> 00:00:00 | K142: =Be!J222 -> 0 | L142: =Be!K222 -> 0 | N142: =Be!A217 -> 0
A143: 141. | B143: =Be!A223 -> 0 | C143: =Be!B223 -> 0 | D143: =Be!C223 -> 0 | E143: =Be!D223 -> 0 | F143: =Be!E223 -> 0 | G143: =Be!F223 -> 0 | H143: =Be!G223 -> 0 | I143: =Be!H223 -> 0 | J143: =Be!I223 -> 00:00:00 | K143: =Be!J223 -> 0 | L143: =Be!K223 -> 0 | N143: =Be!A217 -> 0
A144: 142. | B144: =Be!A224 -> 0 | C144: =Be!B224 -> 0 | D144: =Be!C224 -> 0 | E144: =Be!D224 -> 0 | F144: =Be!E224 -> 0 | G144: =Be!F224 -> 0 | H144: =Be!G224 -> 0 | I144: =Be!H224 -> 0 | J144: =Be!I224 -> 00:00:00 | K144: =Be!J224 -> 0 | L144: =Be!K224 -> 0 | N144: =Be!A217 -> 0
A145: 143. | B145: =Be!A229 -> 0 | C145: =Be!B229 -> 0 | D145: =Be!C229 -> 0 | E145: =Be!D229 -> 0 | F145: =Be!E229 -> 0 | G145: =Be!F229 -> 0 | H145: =Be!G229 -> 0 | I145: =Be!H229 -> 0 | J145: =Be!I229 -> 00:00:00 | K145: =Be!J229 -> 0 | L145: =Be!K229 -> 0 | N145: =Be!A227 -> 0
A146: 144. | B146: =Be!A230 -> 0 | C146: =Be!B230 -> 0 | D146: =Be!C230 -> 0 | E146: =Be!D230 -> 0 | F146: =Be!E230 -> 0 | G146: =Be!F230 -> 0 | H146: =Be!G230 -> 0 | I146: =Be!H230 -> 0 | J146: =Be!I230 -> 00:00:00 | K146: =Be!J230 -> 0 | L146: =Be!K230 -> 0 | N146: =Be!A227 -> 0
A147: 145. | B147: =Be!A231 -> 0 | C147: =Be!B231 -> 0 | D147: =Be!C231 -> 0 | E147: =Be!D231 -> 0 | F147: =Be!E231 -> 0 | G147: =Be!F231 -> 0 | H147: =Be!G231 -> 0 | I147: =Be!H231 -> 0 | J147: =Be!I231 -> 00:00:00 | K147: =Be!J231 -> 0 | L147: =Be!K231 -> 0 | N147: =Be!A227 -> 0
A148: 146. | B148: =Be!A232 -> 0 | C148: =Be!B232 -> 0 | D148: =Be!C232 -> 0 | E148: =Be!D232 -> 0 | F148: =Be!E232 -> 0 | G148: =Be!F232 -> 0 | H148: =Be!G232 -> 0 | I148: =Be!H232 -> 0 | J148: =Be!I232 -> 00:00:00 | K148: =Be!J232 -> 0 | L148: =Be!K232 -> 0 | N148: =Be!A227 -> 0
A149: 147. | B149: =Be!A233 -> 0 | C149: =Be!B233 -> 0 | D149: =Be!C233 -> 0 | E149: =Be!D233 -> 0 | F149: =Be!E233 -> 0 | G149: =Be!F233 -> 0 | H149: =Be!G233 -> 0 | I149: =Be!H233 -> 0 | J149: =Be!I233 -> 00:00:00 | K149: =Be!J233 -> 0 | L149: =Be!K233 -> 0 | N149: =Be!A227 -> 0
A150: 148. | B150: =Be!A234 -> 0 | C150: =Be!B234 -> 0 | D150: =Be!C234 -> 0 | E150: =Be!D234 -> 0 | F150: =Be!E234 -> 0 | G150: =Be!F234 -> 0 | H150: =Be!G234 -> 0 | I150: =Be!H234 -> 0 | J150: =Be!I234 -> 00:00:00 | K150: =Be!J234 -> 0 | L150: =Be!K234 -> 0 | N150: =Be!A227 -> 0
A151: 149. | B151: =Be!A239 -> 0 | C151: =Be!B239 -> 0 | D151: =Be!C239 -> 0 | E151: =Be!D239 -> 0 | F151: =Be!E239 -> 0 | G151: =Be!F239 -> 0 | H151: =Be!G239 -> 0 | I151: =Be!H239 -> 0 | J151: =Be!I239 -> 00:00:00 | K151: =Be!J239 -> 0 | L151: =Be!K239 -> 0 | N151: =Be!A237 -> 0
A152: 150. | B152: =Be!A240 -> 0 | C152: =Be!B240 -> 0 | D152: =Be!C240 -> 0 | E152: =Be!D240 -> 0 | F152: =Be!E240 -> 0 | G152: =Be!F240 -> 0 | H152: =Be!G240 -> 0 | I152: =Be!H240 -> 0 | J152: =Be!I240 -> 00:00:00 | K152: =Be!J240 -> 0 | L152: =Be!K240 -> 0 | N152: =Be!A237 -> 0
A153: 151. | B153: =Be!A241 -> 0 | C153: =Be!B241 -> 0 | D153: =Be!C241 -> 0 | E153: =Be!D241 -> 0 | F153: =Be!E241 -> 0 | G153: =Be!F241 -> 0 | H153: =Be!G241 -> 0 | I153: =Be!H241 -> 0 | J153: =Be!I241 -> 00:00:00 | K153: =Be!J241 -> 0 | L153: =Be!K241 -> 0 | N153: =Be!A237 -> 0
A154: 152. | B154: =Be!A242 -> 0 | C154: =Be!B242 -> 0 | D154: =Be!C242 -> 0 | E154: =Be!D242 -> 0 | F154: =Be!E242 -> 0 | G154: =Be!F242 -> 0 | H154: =Be!G242 -> 0 | I154: =Be!H242 -> 0 | J154: =Be!I242 -> 00:00:00 | K154: =Be!J242 -> 0 | L154: =Be!K242 -> 0 | N154: =Be!A237 -> 0
A155: 153. | B155: =Be!A243 -> 0 | C155: =Be!B243 -> 0 | D155: =Be!C243 -> 0 | E155: =Be!D243 -> 0 | F155: =Be!E243 -> 0 | G155: =Be!F243 -> 0 | H155: =Be!G243 -> 0 | I155: =Be!H243 -> 0 | J155: =Be!I243 -> 00:00:00 | K155: =Be!J243 -> 0 | L155: =Be!K243 -> 0 | N155: =Be!A237 -> 0
A156: 154. | B156: =Be!A244 -> 0 | C156: =Be!B244 -> 0 | D156: =Be!C244 -> 0 | E156: =Be!D244 -> 0 | F156: =Be!E244 -> 0 | G156: =Be!F244 -> 0 | H156: =Be!G244 -> 0 | I156: =Be!H244 -> 0 | J156: =Be!I244 -> 00:00:00 | K156: =Be!J244 -> 0 | L156: =Be!K244 -> 0 | N156: =Be!A237 -> 0

Sheet Csapat
A1: III. korcsoport LEÁNY CSAPAT verseny ( Rendezés Ctrl + w )
B2: Iskola | C2: Pont
A3: 1. | B3: =Be!$A$27&CHAR(10)&Be!$A$29&" "&Be!$K$29&" "&Be!$A$30&" "&Be!$K$30&CHAR(10)&Be!$A$31&" "&Be!$K$31&" "&Be!$A$32&" "&Be!$K$32&CHAR(10)&Be!$A$33&" "&Be!$K$33&" "&Be!$A$34&" "&Be!$K$34 -> DUNAKESZI FAZEKAS MIHÁLY NÉMET NYELVOKTATÓ NEMZETISÉGI ÁLTALÁNOS ISKOLA Békefi Emese Dóra 447 Décsei Krisztina 576 Éles Zsófia 468 Gyuricza Laura 454 Gyurik Titanilla 350 Temesvári Tinetta Vivien 569 | C3: =Be!$M$29 -> 2514
A4: 2. | B4: =Be!$A$37&CHAR(10)&Be!$A$39&" "&Be!$K$39&" "&Be!$A$40&" "&Be!$K$40&CHAR(10)&Be!$A$41&" "&Be!$K$41&" "&Be!$A$42&" "&Be!$K$42&CHAR(10)&Be!$A$43&" "&Be!$K$43&" "&Be!$A$44&" "&Be!$K$44 -> DUNAKESZI SZENT ISTVÁN ÁLTALÁNOS ISKOLA Erdész Anna 415 Fülöp Hanna 392 Gedeon Réka 415 Avarkeszi Dóra Szilvia 467 Király Liliom 516 Sziráki Míra Enikő 325 | C4: =Be!$M$39 -> 2205
A5: 3. | B5: =Be!$A$47&CHAR(10)&Be!$A$49&" "&Be!$K$49&" "&Be!$A$50&" "&Be!$K$50&CHAR(10)&Be!$A$51&" "&Be!$K$51&" "&Be!$A$52&" "&Be!$K$52&CHAR(10)&Be!$A$53&" "&Be!$K$53&" "&Be!$A$54&" "&Be!$K$54 -> DUNAKESZI KŐRÖSI CSOMA SÁNDOR ÁLTALÁNOS ISKOLA Erdős Kinga 436 Horváth Boglárka 507 Kapuvári Liliána 552 Őzse Dorka 530 Zarándi Dorottya Eszter 606 Zarándi Edina Réka 566 | C5: =Be!$M$49 -> 2761
A6: 4. | B6: =Be!$A$57&CHAR(10)&Be!$A$59&" "&Be!$K$59&" "&Be!$A$60&" "&Be!$K$60&CHAR(10)&Be!$A$61&" "&Be!$K$61&" "&Be!$A$62&" "&Be!$K$62&CHAR(10)&Be!$A$63&" "&Be!$K$63&" "&Be!$A$64&" "&Be!$K$64 -> DUNAKESZI RADNÓTI MIKLÓS GIMNÁZIUM Víg Fanni 452 Szilágyi Ágota 533 Molnár Dóra 493 Moni Csenge 456 Sasvári Dorina 335 Krúdy Hanna 316 | C6: =Be!$M$59 -> 2269
A7: 5. | B7: =Be!$A$67&CHAR(10)&Be!$A$69&" "&Be!$K$69&" "&Be!$A$70&" "&Be!$K$70&CHAR(10)&Be!$A$71&" "&Be!$K$71&" "&Be!$A$72&" "&Be!$K$72&CHAR(10)&Be!$A$73&" "&Be!$K$73&" "&Be!$A$74&" "&Be!$K$74 -> DUNAKESZI BÁRDOS LAJOS ÁLTALÁNOS ISKOLA Bogáti Bianka 504 Tikász Emma 330 Volentics Anna 380 Agócs Lili 297 Bán Eszter 595 Dankó Míra 0 | C7: =Be!$M$69 -> 2106
A8: 6. | B8: =Be!$A$77&CHAR(10)&Be!$A$79&" "&Be!$K$79&" "&Be!$A$80&" "&Be!$K$80&CHAR(10)&Be!$A$81&" "&Be!$K$81&" "&Be!$A$82&" "&Be!$K$82&CHAR(10)&Be!$A$83&" "&Be!$K$83&" "&Be!$A$84&" "&Be!$K$84 -> Gödi Németh László Általános Iskola és Alapfokú Művészeti Iskola Füzi Dorina 392 Gulyás Csenge 340 Gyürky Renáta 371 Horváth Lilla Eszter 529 Kovács Jázmin 473 0 | C8: =Be!$M$79 -> 2105
A9: 7. | B9: =Be!$A$87&CHAR(10)&Be!$A$89&" "&Be!$K$89&" "&Be!$A$90&" "&Be!$K$90&CHAR(10)&Be!$A$91&" "&Be!$K$91&" "&Be!$A$92&" "&Be!$K$92&CHAR(10)&Be!$A$93&" "&Be!$K$93&" "&Be!$A$94&" "&Be!$K$94 -> Dunakeszi Széchenyi István Általános Iskola Becsák Eszter 229 Biczó Barbara 398 Fézer Ramona 228 Horváth Nikolett Luca 236 Koppányi Katalin 316 Lévai-Jenet Viktória 315 | C9: =Be!$M$89 -> 1494
A10: 8. | B10: =Be!$A$97&CHAR(10)&Be!$A$99&" "&Be!$K$99&" "&Be!$A$100&" "&Be!$K$100&CHAR(10)&Be!$A$101&" "&Be!$K$101&" "&Be!$A$102&" "&Be!$K$102&CHAR(10)&Be!$A$103&" "&Be!$K$103&" "&Be!$A$104&" "&Be!$K$104 -> 0 0 0 0 0 0 | C10: =Be!$M$99 -> 0
A11: 9. | B11: =Be!$A$107&CHAR(10)&Be!$A$109&" "&Be!$K$109&" "&Be!$A$110&" "&Be!$K$110&CHAR(10)&Be!$A$111&" "&Be!$K$111&" "&Be!$A$112&" "&Be!$K$112&CHAR(10)&Be!$A$113&" "&Be!$K$113&" "&Be!$A$114&" "&Be!$K$114 -> 0 0 0 0 0 0 | C11: =Be!$M$109 -> 0
A12: 10. | B12: =Be!$A$117&CHAR(10)&Be!$A$119&" "&Be!$K$119&" "&Be!$A$120&" "&Be!$K$120&CHAR(10)&Be!$A$121&" "&Be!$K$121&" "&Be!$A$122&" "&Be!$K$122&CHAR(10)&Be!$A$123&" "&Be!$K$123&" "&Be!$A$124&" "&Be!$K$124 -> 0 0 0 0 0 0 | C12: =Be!$M$119 -> 0
A13: 11. | B13: =Be!$A$127&CHAR(10)&Be!$A$129&" "&Be!$K$129&" "&Be!$A$130&" "&Be!$K$130&CHAR(10)&Be!$A$131&" "&Be!$K$131&" "&Be!$A$132&" "&Be!$K$132&CHAR(10)&Be!$A$133&" "&Be!$K$133&" "&Be!$A$134&" "&Be!$K$134 -> 0 0 0 0 0 0 | C13: =Be!$M$129 -> 0
A14: 12. | B14: =Be!$A$137&CHAR(10)&Be!$A$139&" "&Be!$K$139&" "&Be!$A$140&" "&Be!$K$140&CHAR(10)&Be!$A$141&" "&Be!$K$141&" "&Be!$A$142&" "&Be!$K$142&CHAR(10)&Be!$A$143&" "&Be!$K$143&" "&Be!$A$144&" "&Be!$K$144 -> 0 0 0 0 0 0 | C14: =Be!$M$139 -> 0
A15: 13. | B15: =Be!$A$147&CHAR(10)&Be!$A$149&" "&Be!$K$149&" "&Be!$A$150&" "&Be!$K$150&CHAR(10)&Be!$A$151&" "&Be!$K$151&" "&Be!$A$152&" "&Be!$K$152&CHAR(10)&Be!$A$153&" "&Be!$K$153&" "&Be!$A$154&" "&Be!$K$154 -> 0 0 0 0 0 0 | C15: =Be!$M$149 -> 0
A16: 14. | B16: =Be!$A$157&CHAR(10)&Be!$A$159&" "&Be!$K$159&" "&Be!$A$160&" "&Be!$K$160&CHAR(10)&Be!$A$161&" "&Be!$K$161&" "&Be!$A$162&" "&Be!$K$162&CHAR(10)&Be!$A$163&" "&Be!$K$163&" "&Be!$A$164&" "&Be!$K$164 -> 0 0 0 0 0 0 | C16: =Be!$M$159 -> 0
A17: 15. | B17: =Be!$A$167&CHAR(10)&Be!$A$169&" "&Be!$K$169&" "&Be!$A$170&" "&Be!$K$170&CHAR(10)&Be!$A$171&" "&Be!$K$171&" "&Be!$A$172&" "&Be!$K$172&CHAR(10)&Be!$A$173&" "&Be!$K$173&" "&Be!$A$174&" "&Be!$K$174 -> 0 0 0 0 0 0 | C17: =Be!$M$169 -> 0
A18: 16. | B18: =Be!$A$177&CHAR(10)&Be!$A$179&" "&Be!$K$179&" "&Be!$A$180&" "&Be!$K$180&CHAR(10)&Be!$A$181&" "&Be!$K$181&" "&Be!$A$182&" "&Be!$K$182&CHAR(10)&Be!$A$183&" "&Be!$K$183&" "&Be!$A$184&" "&Be!$K$184 -> 0 0 0 0 0 0 | C18: =Be!$M$179 -> 0
A19: 17. | B19: =Be!$A$187&CHAR(10)&Be!$A$189&" "&Be!$K$189&" "&Be!$A$190&" "&Be!$K$190&CHAR(10)&Be!$A$191&" "&Be!$K$191&" "&Be!$A$192&" "&Be!$K$192&CHAR(10)&Be!$A$193&" "&Be!$K$193&" "&Be!$A$194&" "&Be!$K$194 -> 0 0 0 0 0 0 | C19: =Be!$M$189 -> 0
A20: 18. | B20: =Be!$A$197&CHAR(10)&Be!$A$199&" "&Be!$K$199&" "&Be!$A$200&" "&Be!$K$200&CHAR(10)&Be!$A$201&" "&Be!$K$201&" "&Be!$A$202&" "&Be!$K$202&CHAR(10)&Be!$A$203&" "&Be!$K$203&" "&Be!$A$204&" "&Be!$K$204 -> 0 0 0 0 0 0 | C20: =Be!$M$199 -> 0
A21: 19. | B21: =Be!$A$207&CHAR(10)&Be!$A$209&" "&Be!$K$209&" "&Be!$A$210&" "&Be!$K$210&CHAR(10)&Be!$A$211&" "&Be!$K$211&" "&Be!$A$212&" "&Be!$K$212&CHAR(10)&Be!$A$213&" "&Be!$K$213&" "&Be!$A$214&" "&Be!$K$214 -> 0 0 0 0 0 0 | C21: =Be!$M$209 -> 0
A22: 20. | B22: =Be!$A$217&CHAR(10)&Be!$A$219&" "&Be!$K$219&" "&Be!$A$220&" "&Be!$K$220&CHAR(10)&Be!$A$221&" "&Be!$K$221&" "&Be!$A$222&" "&Be!$K$222&CHAR(10)&Be!$A$223&" "&Be!$K$223&" "&Be!$A$224&" "&Be!$K$224 -> 0 0 0 0 0 0 | C22: =Be!$M$219 -> 0
A23: 21. | B23: =Be!$A$227&CHAR(10)&Be!$A$229&" "&Be!$K$229&" "&Be!$A$230&" "&Be!$K$230&CHAR(10)&Be!$A$231&" "&Be!$K$231&" "&Be!$A$232&" "&Be!$K$232&CHAR(10)&Be!$A$233&" "&Be!$K$233&" "&Be!$A$234&" "&Be!$K$234 -> 0 0 0 0 0 0 | C23: =Be!$M$229 -> 0
A24: 22. | B24: =Be!$A$237&CHAR(10)&Be!$A$239&" "&Be!$K$239&" "&Be!$A$240&" "&Be!$K$240&CHAR(10)&Be!$A$241&" "&Be!$K$241&" "&Be!$A$242&" "&Be!$K$242&CHAR(10)&Be!$A$243&" "&Be!$K$243&" "&Be!$A$244&" "&Be!$K$244 -> 0 0 0 0 0 0 | C24: =Be!$M$239 -> 0
